Publisher Label,Publisher URI,"Supplier ID","Supplier","Invoice No.","Amount £","Purpose","Transaction Number","Payment Date","Organisational Unit","Cost Centre(T)","Internal Category Number"
"Wolverhampton City Council","http://opendatacommunities.org/id/metropolitan-district-council/wolverhampton","708251","Total Gas & Power Limited","176276919","587.27","Electricity","190508710","21/09/2018","Corporate Asset Management","Central Utilities to Recharge","R2100"
"Wolverhampton City Council","http://opendatacommunities.org/id/metropolitan-district-council/wolverhampton","708251","Total Gas & Power Limited","176276996","270.09","Electricity","190508718","21/09/2018","Corporate Asset Management","Central Utilities to Recharge","R2100"
"Wolverhampton City Council","http://opendatacommunities.org/id/metropolitan-district-council/wolverhampton","708251","Total Gas & Power Limited","172099053","3.68","Electricity","190508754","21/09/2018","Corporate Asset Management","Central Utilities to Recharge","R2100"
"Wolverhampton City Council","http://opendatacommunities.org/id/metropolitan-district-council/wolverhampton","708251","Total Gas & Power Limited","176394070","267.18","Electricity","190508767","21/09/2018","Corporate Asset Management","Central Utilities to Recharge","R2100"
"Wolverhampton City Council","http://opendatacommunities.org/id/metropolitan-district-council/wolverhampton","708251","Total Gas & Power Limited","175529029C","-19.53","Electricity","190508765","21/09/2018","Corporate Asset Management","Central Utilities to Recharge","R2100"
"Wolverhampton City Council","http://opendatacommunities.org/id/metropolitan-district-council/wolverhampton","708251","Total Gas & Power Limited","176394113","63.63","Electricity","190508773","21/09/2018","Corporate Asset Management","Central Utilities to Recharge","R2100"
"Wolverhampton City Council","http://opendatacommunities.org/id/metropolitan-district-council/wolverhampton","708251","Total Gas & Power Limited","175487064","14.55","Electricity","190508778","21/09/2018","Corporate Asset Management","Central Utilities to Recharge","R2100"
"Wolverhampton City Council","http://opendatacommunities.org/id/metropolitan-district-council/wolverhampton","708251","Total Gas & Power Limited","175566528","9.51","Electricity","190508771","21/09/2018","Corporate Asset Management","Central Utilities to Recharge","R2100"
"Wolverhampton City Council","http://opendatacommunities.org/id/metropolitan-district-council/wolverhampton","708251","Total Gas & Power Limited","176394168","93.91","Electricity","190508779","21/09/2018","Corporate Asset Management","Central Utilities to Recharge","R2100"
"Wolverhampton City Council","http://opendatacommunities.org/id/metropolitan-district-council/wolverhampton","708251","Total Gas & Power Limited","176394267","592.09","Electricity","190508787","21/09/2018","Corporate Asset Management","Central Utilities to Recharge","R2100"
"Wolverhampton City Council","http://opendatacommunities.org/id/metropolitan-district-council/wolverhampton","708251","Total Gas & Power Limited","175475668","281.51","Electricity","190508789","21/09/2018","Corporate Asset Management","Central Utilities to Recharge","R2100"
"Wolverhampton City Council","http://opendatacommunities.org/id/metropolitan-district-council/wolverhampton","708251","Total Gas & Power Limited","175521560","65.67","Electricity","190508781","21/09/2018","Corporate Asset Management","Central Utilities to Recharge","R2100"
"Wolverhampton City Council","http://opendatacommunities.org/id/metropolitan-district-council/wolverhampton","708251","Total Gas & Power Limited","176452710","9,589.97","Electricity","190508488","21/09/2018","Corporate Asset Management","Central Utilities to Recharge","R2100"
"Wolverhampton City Council","http://opendatacommunities.org/id/metropolitan-district-council/wolverhampton","708251","Total Gas & Power Limited","175524101","1,335.58","Electricity","190508499","21/09/2018","Corporate Asset Management","Central Utilities to Recharge","R2100"
"Wolverhampton City Council","http://opendatacommunities.org/id/metropolitan-district-council/wolverhampton","708251","Total Gas & Power Limited","176452743","939.87","Electricity","190508491","21/09/2018","Schools","Fallings Park Primary School","R2100"
"Wolverhampton City Council","http://opendatacommunities.org/id/metropolitan-district-council/wolverhampton","708251","Total Gas & Power Limited","176452985","816.93","Electricity","190508518","21/09/2018","Schools","Springdale Primary School","R2100"
"Wolverhampton City Council","http://opendatacommunities.org/id/metropolitan-district-council/wolverhampton","708251","Total Gas & Power Limited","176452952","739.81","Electricity","190508516","21/09/2018","Corporate Asset Management","Central Utilities to Recharge","R2100"
"Wolverhampton City Council","http://opendatacommunities.org/id/metropolitan-district-council/wolverhampton","708251","Total Gas & Power Limited","176453172","118.29","Electricity","190508524","21/09/2018","Corporate Asset Management","Central Utilities to Recharge","R2100"
"Wolverhampton City Council","http://opendatacommunities.org/id/metropolitan-district-council/wolverhampton","708251","Total Gas & Power Limited","176453480","77.10","Electricity","190508529","21/09/2018","Schools","Penn Hall Special School","R2100"
"Wolverhampton City Council","http://opendatacommunities.org/id/metropolitan-district-council/wolverhampton","708251","Total Gas & Power Limited","176453315","343.06","Electricity","190508526","21/09/2018","Corporate Asset Management","Central Utilities to Recharge","R2100"
"Wolverhampton City Council","http://opendatacommunities.org/id/metropolitan-district-council/wolverhampton","708251","Total Gas & Power Limited","176363874","262.08","Electricity","190508584","21/09/2018","Corporate Asset Management","Central Utilities to Recharge","R2100"
"Wolverhampton City Council","http://opendatacommunities.org/id/metropolitan-district-council/wolverhampton","708251","Total Gas & Power Limited","176503970","319.19","Electricity","190508580","21/09/2018","Schools","Woodthorne Primary School","R2100"
"Wolverhampton City Council","http://opendatacommunities.org/id/metropolitan-district-council/wolverhampton","708251","Total Gas & Power Limited","176502100","667.37","Electricity","190508541","21/09/2018","Schools","Long Knowle Primary School","R2100"
"Wolverhampton City Council","http://opendatacommunities.org/id/metropolitan-district-council/wolverhampton","708251","Total Gas & Power Limited","176502837","58.30","Electricity","190508552","21/09/2018","Operation & Maintenance of Existing Network","Rechargeable Works to Capital - Contract Annual Costs","R2100"
"Wolverhampton City Council","http://opendatacommunities.org/id/metropolitan-district-council/wolverhampton","708251","Total Gas & Power Limited","176502408","189.94","Electricity","190508546","21/09/2018","Corporate Asset Management","Central Utilities to Recharge","R2100"
"Wolverhampton City Council","http://opendatacommunities.org/id/metropolitan-district-council/wolverhampton","708251","Total Gas & Power Limited","176502925","21.95","Electricity","190508554","21/09/2018","Corporate Asset Management","Central Utilities to Recharge","R2100"
"Wolverhampton City Council","http://opendatacommunities.org/id/metropolitan-district-council/wolverhampton","708251","Total Gas & Power Limited","176503134","79.07","Electricity","190508559","21/09/2018","Corporate Asset Management","Central Utilities to Recharge","R2100"
"Wolverhampton City Council","http://opendatacommunities.org/id/metropolitan-district-council/wolverhampton","708251","Total Gas & Power Limited","176503266","72.59","Electricity","190508563","21/09/2018","Facilities Management","Management of Vacant Properties","R2100"
"Wolverhampton City Council","http://opendatacommunities.org/id/metropolitan-district-council/wolverhampton","708251","Total Gas & Power Limited","176503178","220.17","Electricity","190508561","21/09/2018","Housing Revenue Account","Amounts to be Settled with Wolverhampton Homes","R2100"
"Wolverhampton City Council","http://opendatacommunities.org/id/metropolitan-district-council/wolverhampton","708251","Total Gas & Power Limited","176364710","-945.71","Electricity","190508601","21/09/2018","Corporate Asset Management","Central Utilities to Recharge","R2100"
"Wolverhampton City Council","http://opendatacommunities.org/id/metropolitan-district-council/wolverhampton","708251","Total Gas & Power Limited","176364303","177.08","Electricity","190508594","21/09/2018","Schools","Eastfield Nursery","R2100"
"Wolverhampton City Council","http://opendatacommunities.org/id/metropolitan-district-council/wolverhampton","708251","Total Gas & Power Limited","176364798","182.09","Electricity","190508603","21/09/2018","Corporate Asset Management","Central Utilities to Recharge","R2100"
"Wolverhampton City Council","http://opendatacommunities.org/id/metropolitan-district-council/wolverhampton","708251","Total Gas & Power Limited","176513210","112.51","Electricity","190508619","21/09/2018","Corporate Asset Management","Central Utilities to Recharge","R2100"
"Wolverhampton City Council","http://opendatacommunities.org/id/metropolitan-district-council/wolverhampton","708251","Total Gas & Power Limited","176513254","376.28","Electricity","190508621","21/09/2018","Schools","Wodensfield Primary School","R2100"
"Wolverhampton City Council","http://opendatacommunities.org/id/metropolitan-district-council/wolverhampton","708251","Total Gas & Power Limited","176512825","29.63","Electricity","190508609","21/09/2018","Corporate Asset Management","Central Utilities to Recharge","R2100"
"Wolverhampton City Council","http://opendatacommunities.org/id/metropolitan-district-council/wolverhampton","708251","Total Gas & Power Limited","176830000","247.31","Gas","190507808","19/09/2018","Schools","St Paul�s Church of England (Aided) School","R2101"
"Wolverhampton City Council","http://opendatacommunities.org/id/metropolitan-district-council/wolverhampton","708251","Total Gas & Power Limited","176669179","106.25","Gas","190507631","19/09/2018","Schools","St Patrick�s Catholic Primary School","R2101"
"Wolverhampton City Council","http://opendatacommunities.org/id/metropolitan-district-council/wolverhampton","708251","Total Gas & Power Limited","175144535","958.98","Electricity","190502097","05/09/2018","Corporate Asset Management","Central Utilities to Recharge","R2100"
"Wolverhampton City Council","http://opendatacommunities.org/id/metropolitan-district-council/wolverhampton","708251","Total Gas & Power Limited","175177733","77.83","Electricity","190502182","05/09/2018","Corporate Asset Management","Central Utilities to Recharge","R2100"
"Wolverhampton City Council","http://opendatacommunities.org/id/metropolitan-district-council/wolverhampton","708251","Total Gas & Power Limited","176830637","146.56","Gas","190507742","19/09/2018","Corporate Asset Management","Central Utilities to Recharge","R2101"
"Wolverhampton City Council","http://opendatacommunities.org/id/metropolitan-district-council/wolverhampton","708251","Total Gas & Power Limited","176830648","194.09","Gas","190507741","19/09/2018","Corporate Asset Management","Central Utilities to Recharge","R2101"
"Wolverhampton City Council","http://opendatacommunities.org/id/metropolitan-district-council/wolverhampton","708251","Total Gas & Power Limited","176668508","47.84","Gas","190507703","19/09/2018","Corporate Asset Management","Central Utilities to Recharge","R2101"
"Wolverhampton City Council","http://opendatacommunities.org/id/metropolitan-district-council/wolverhampton","708251","Total Gas & Power Limited","174610826C","-63.41","Gas","190507688","19/09/2018","Corporate Asset Management","Central Utilities to Recharge","R2101"
"Wolverhampton City Council","http://opendatacommunities.org/id/metropolitan-district-council/wolverhampton","708251","Total Gas & Power Limited","176668596","47.84","Gas","190507694","19/09/2018","Corporate Asset Management","Central Utilities to Recharge","R2101"
"Wolverhampton City Council","http://opendatacommunities.org/id/metropolitan-district-council/wolverhampton","708251","Total Gas & Power Limited","175240037","38.75","Electricity","190502069","05/09/2018","Facilities Management","Management of Vacant Properties","R2100"
"Wolverhampton City Council","http://opendatacommunities.org/id/metropolitan-district-council/wolverhampton","708251","Total Gas & Power Limited","175239333","9.68","Electricity","190502035","05/09/2018","Corporate Asset Management","Central Utilities to Recharge","R2100"
"Wolverhampton City Council","http://opendatacommunities.org/id/metropolitan-district-council/wolverhampton","708251","Total Gas & Power Limited","175240180","1,210.95","Electricity","190502083","05/09/2018","Schools","Trinity Church of England Primary School","R2100"
"Wolverhampton City Council","http://opendatacommunities.org/id/metropolitan-district-council/wolverhampton","708251","Total Gas & Power Limited","175240290","35.38","Electricity","190502085","05/09/2018","Corporate Asset Management","Central Utilities to Recharge","R2100"
"Wolverhampton City Council","http://opendatacommunities.org/id/metropolitan-district-council/wolverhampton","708251","Total Gas & Power Limited","175240158","18.82","Electricity","190502080","05/09/2018","Corporate Asset Management","Central Utilities to Recharge","R2100"
"Wolverhampton City Council","http://opendatacommunities.org/id/metropolitan-district-council/wolverhampton","708251","Total Gas & Power Limited","175182243","95.64","Electricity","190502130","05/09/2018","Schools","St Anthony�s Catholic Primary School","R2100"
"Wolverhampton City Council","http://opendatacommunities.org/id/metropolitan-district-council/wolverhampton","708251","Total Gas & Power Limited","175239806","27.70","Electricity","190502056","05/09/2018","Corporate Asset Management","Central Utilities to Recharge","R2100"
"Wolverhampton City Council","http://opendatacommunities.org/id/metropolitan-district-council/wolverhampton","708251","Total Gas & Power Limited","175144898","1,459.43","Electricity","190502102","05/09/2018","Schools","Warstones Primary School","R2100"
"Wolverhampton City Council","http://opendatacommunities.org/id/metropolitan-district-council/wolverhampton","708251","Total Gas & Power Limited","175145217","20.60","Electricity","190502105","05/09/2018","Corporate Asset Management","Central Utilities to Recharge","R2100"
"Wolverhampton City Council","http://opendatacommunities.org/id/metropolitan-district-council/wolverhampton","708251","Total Gas & Power Limited","175240125","2,245.78","Electricity","190502077","05/09/2018","Schools","Penn Hall Special School","R2100"
"Wolverhampton City Council","http://opendatacommunities.org/id/metropolitan-district-council/wolverhampton","708251","Total Gas & Power Limited","175144821","26.15","Electricity","190502099","05/09/2018","Corporate Asset Management","Central Utilities to Recharge","R2100"
"Wolverhampton City Council","http://opendatacommunities.org/id/metropolitan-district-council/wolverhampton","708251","Total Gas & Power Limited","175183420","30.22","Electricity","190502161","05/09/2018","Schools","Bilston Church of England Primary School","R2100"
"Wolverhampton City Council","http://opendatacommunities.org/id/metropolitan-district-council/wolverhampton","708251","Total Gas & Power Limited","175183409","202.81","Electricity","190502160","05/09/2018","Corporate Asset Management","Central Utilities to Recharge","R2100"
"Wolverhampton City Council","http://opendatacommunities.org/id/metropolitan-district-council/wolverhampton","708251","Total Gas & Power Limited","175182530","12.89","Electricity","190502139","05/09/2018","Corporate Asset Management","Central Utilities to Recharge","R2100"
"Wolverhampton City Council","http://opendatacommunities.org/id/metropolitan-district-council/wolverhampton","708251","Total Gas & Power Limited","175183310","14.44","Electricity","190502156","05/09/2018","Corporate Asset Management","Central Utilities to Recharge","R2100"
"Wolverhampton City Council","http://opendatacommunities.org/id/metropolitan-district-council/wolverhampton","708251","Total Gas & Power Limited","175182507","82.50","Electricity","190502137","05/09/2018","Corporate Asset Management","Central Utilities to Recharge","R2100"
"Wolverhampton City Council","http://opendatacommunities.org/id/metropolitan-district-council/wolverhampton","708251","Total Gas & Power Limited","175183222","303.60","Electricity","190502153","05/09/2018","Schools","St Alban�s Church of England Primary School","R2100"
"Wolverhampton City Council","http://opendatacommunities.org/id/metropolitan-district-council/wolverhampton","708251","Total Gas & Power Limited","175183519","268.28","Electricity","190502162","05/09/2018","Corporate Asset Management","Central Utilities to Recharge","R2100"
"Wolverhampton City Council","http://opendatacommunities.org/id/metropolitan-district-council/wolverhampton","708251","Total Gas & Power Limited","175177546","7.51","Electricity","190502175","05/09/2018","Corporate Asset Management","Central Utilities to Recharge","R2100"
"Wolverhampton City Council","http://opendatacommunities.org/id/metropolitan-district-council/wolverhampton","708251","Total Gas & Power Limited","175183783","251.49","Electricity","190502170","05/09/2018","Transportation","Bridges & Subways","R2100"
"Wolverhampton City Council","http://opendatacommunities.org/id/metropolitan-district-council/wolverhampton","708251","Total Gas & Power Limited","175177524","115.35","Electricity","190502173","05/09/2018","Corporate Asset Management","Central Utilities to Recharge","R2100"
"Wolverhampton City Council","http://opendatacommunities.org/id/metropolitan-district-council/wolverhampton","708251","Total Gas & Power Limited","175183189","107.68","Electricity","190502151","05/09/2018","Corporate Asset Management","Central Utilities to Recharge","R2100"
"Wolverhampton City Council","http://opendatacommunities.org/id/metropolitan-district-council/wolverhampton","708251","Total Gas & Power Limited","175075609","327.56","Electricity","190502227","05/09/2018","Corporate Asset Management","Central Utilities to Recharge","R2100"
"Wolverhampton City Council","http://opendatacommunities.org/id/metropolitan-district-council/wolverhampton","708251","Total Gas & Power Limited","175178019","36.56","Electricity","190502188","05/09/2018","Corporate Asset Management","Central Utilities to Recharge","R2100"
"Wolverhampton City Council","http://opendatacommunities.org/id/metropolitan-district-council/wolverhampton","708251","Total Gas & Power Limited","175075631","240.56","Electricity","190502228","05/09/2018","Corporate Asset Management","Central Utilities to Recharge","R2100"
"Wolverhampton City Council","http://opendatacommunities.org/id/metropolitan-district-council/wolverhampton","708251","Total Gas & Power Limited","175075917","79.86","Electricity","190502237","05/09/2018","Corporate Asset Management","Central Utilities to Recharge","R2100"
"Wolverhampton City Council","http://opendatacommunities.org/id/metropolitan-district-council/wolverhampton","708251","Total Gas & Power Limited","175178470","316.37","Electricity","190502196","05/09/2018","Schools","Eastfield Nursery","R2100"
"Wolverhampton City Council","http://opendatacommunities.org/id/metropolitan-district-council/wolverhampton","708251","Total Gas & Power Limited","175074950","14.07","Electricity","190502213","05/09/2018","Corporate Asset Management","Central Utilities to Recharge","R2100"
"Wolverhampton City Council","http://opendatacommunities.org/id/metropolitan-district-council/wolverhampton","708251","Total Gas & Power Limited","175178899","23.94","Electricity","190502205","05/09/2018","Operation & Maintenance of Existing Network","Rechargeable Works to Capital - Contract Annual Costs","R2100"
"Wolverhampton City Council","http://opendatacommunities.org/id/metropolitan-district-council/wolverhampton","708251","Total Gas & Power Limited","175179207","16.93","Electricity","190502209","05/09/2018","Corporate Asset Management","Central Utilities to Recharge","R2100"
"Wolverhampton City Council","http://opendatacommunities.org/id/metropolitan-district-council/wolverhampton","708251","Total Gas & Power Limited","175129278","251.95","Electricity","190502275","05/09/2018","Corporate Asset Management","Central Utilities to Recharge","R2100"
"Wolverhampton City Council","http://opendatacommunities.org/id/metropolitan-district-council/wolverhampton","708251","Total Gas & Power Limited","175075312","20.76","Electricity","190502221","05/09/2018","Corporate Asset Management","Central Utilities to Recharge","R2100"
"Wolverhampton City Council","http://opendatacommunities.org/id/metropolitan-district-council/wolverhampton","708251","Total Gas & Power Limited","175075477","56.69","Electricity","190502225","05/09/2018","Schools","Trinity Church of England Primary School","R2100"
"Wolverhampton City Council","http://opendatacommunities.org/id/metropolitan-district-council/wolverhampton","708251","Total Gas & Power Limited","175129344","47,159.62","Electricity","190502280","05/09/2018","Corporate Asset Management","Central Utilities to Recharge","R2100"
"Wolverhampton City Council","http://opendatacommunities.org/id/metropolitan-district-council/wolverhampton","708251","Total Gas & Power Limited","175076181","398.73","Electricity","190502242","05/09/2018","Schools","Merridale Primary School","R2100"
"Wolverhampton City Council","http://opendatacommunities.org/id/metropolitan-district-council/wolverhampton","708251","Total Gas & Power Limited","175128629","32.04","Electricity","190502257","05/09/2018","Corporate Asset Management","Central Utilities to Recharge","R2100"
"Wolverhampton City Council","http://opendatacommunities.org/id/metropolitan-district-council/wolverhampton","708251","Total Gas & Power Limited","175128740","75.48","Electricity","190502263","05/09/2018","Schools","Penn Hall Special School","R2100"
"Wolverhampton City Council","http://opendatacommunities.org/id/metropolitan-district-council/wolverhampton","708251","Total Gas & Power Limited","175128850","26.92","Electricity","190502265","05/09/2018","Corporate Asset Management","Central Utilities to Recharge","R2100"
"Wolverhampton City Council","http://opendatacommunities.org/id/metropolitan-district-council/wolverhampton","708251","Total Gas & Power Limited","157623702","44.35","Electricity","190503905","12/09/2018","Corporate Asset Management","Central Utilities to Recharge","R2100"
"Wolverhampton City Council","http://opendatacommunities.org/id/metropolitan-district-council/wolverhampton","708251","Total Gas & Power Limited","166182538","205.02","Electricity","190503919","12/09/2018","Corporate Asset Management","Central Utilities to Recharge","R2100"
"Wolverhampton City Council","http://opendatacommunities.org/id/metropolitan-district-council/wolverhampton","708251","Total Gas & Power Limited","168008087","1,178.71","Electricity","190503908","12/09/2018","Corporate Asset Management","Central Utilities to Recharge","R2100"
"Wolverhampton City Council","http://opendatacommunities.org/id/metropolitan-district-council/wolverhampton","708251","Total Gas & Power Limited","166419115","16.18","Electricity","190503900","12/09/2018","Corporate Asset Management","Central Utilities to Recharge","R2100"
"Wolverhampton City Council","http://opendatacommunities.org/id/metropolitan-district-council/wolverhampton","708251","Total Gas & Power Limited","169660452","901.05","Electricity","190503904","12/09/2018","Corporate Asset Management","Central Utilities to Recharge","R2100"
"Wolverhampton City Council","http://opendatacommunities.org/id/metropolitan-district-council/wolverhampton","708251","Total Gas & Power Limited","169660848","326.02","Electricity","190503911","12/09/2018","Corporate Asset Management","Central Utilities to Recharge","R2100"
"Wolverhampton City Council","http://opendatacommunities.org/id/metropolitan-district-council/wolverhampton","708251","Total Gas & Power Limited","168654018","99.25","Electricity","190503920","12/09/2018","Corporate Asset Management","Central Utilities to Recharge","R2100"
"Wolverhampton City Council","http://opendatacommunities.org/id/metropolitan-district-council/wolverhampton","708251","Total Gas & Power Limited","168656603","408.24","Electricity","190503921","12/09/2018","Corporate Asset Management","Central Utilities to Recharge","R2100"
"Wolverhampton City Council","http://opendatacommunities.org/id/metropolitan-district-council/wolverhampton","708251","Total Gas & Power Limited","168799581","386.93","Electricity","190503925","12/09/2018","Corporate Asset Management","Central Utilities to Recharge","R2100"
"Wolverhampton City Council","http://opendatacommunities.org/id/metropolitan-district-council/wolverhampton","708251","Total Gas & Power Limited","176830087","109.72","Gas","190507818","19/09/2018","Corporate Asset Management","Central Utilities to Recharge","R2101"
"Wolverhampton City Council","http://opendatacommunities.org/id/metropolitan-district-council/wolverhampton","708251","Total Gas & Power Limited","175182860","-70.77","Electricity","190502146","05/09/2018","Corporate Asset Management","Central Utilities to Recharge","R2100"
"Wolverhampton City Council","http://opendatacommunities.org/id/metropolitan-district-council/wolverhampton","708251","Total Gas & Power Limited","175177601","55.26","Electricity","190502176","05/09/2018","Corporate Asset Management","Central Utilities to Recharge","R2100"
"Wolverhampton City Council","http://opendatacommunities.org/id/metropolitan-district-council/wolverhampton","708251","Total Gas & Power Limited","175128739","40.30","Electricity","190502262","05/09/2018","Corporate Asset Management","Central Utilities to Recharge","R2100"
"Wolverhampton City Council","http://opendatacommunities.org/id/metropolitan-district-council/wolverhampton","708251","Total Gas & Power Limited","176668530","48.86","Gas","190507700","19/09/2018","Schools","Phoenix Nursery","R2101"
"Wolverhampton City Council","http://opendatacommunities.org/id/metropolitan-district-council/wolverhampton","708251","Total Gas & Power Limited","176830538","40.06","Gas","190507752","19/09/2018","Facilities Management","Management of Vacant Properties","R2101"
"Wolverhampton City Council","http://opendatacommunities.org/id/metropolitan-district-council/wolverhampton","708251","Total Gas & Power Limited","176830351","159.86","Gas","190507773","19/09/2018","Corporate Asset Management","Central Utilities to Recharge","R2101"
"Wolverhampton City Council","http://opendatacommunities.org/id/metropolitan-district-council/wolverhampton","708251","Total Gas & Power Limited","176669212","47.84","Gas","190507627","19/09/2018","Schools","St Anthony�s Catholic Primary School","R2101"
"Wolverhampton City Council","http://opendatacommunities.org/id/metropolitan-district-council/wolverhampton","708251","Total Gas & Power Limited","176669256","41.78","Gas","190507623","19/09/2018","Schools","Wood End Primary School","R2101"
"Wolverhampton City Council","http://opendatacommunities.org/id/metropolitan-district-council/wolverhampton","708251","Total Gas & Power Limited","176669355","48.38","Gas","190507613","19/09/2018","Corporate Asset Management","Central Utilities to Recharge","R2101"
"Wolverhampton City Council","http://opendatacommunities.org/id/metropolitan-district-council/wolverhampton","708251","Total Gas & Power Limited","176669311","47.84","Gas","190507617","19/09/2018","Corporate Asset Management","Central Utilities to Recharge","R2101"
"Wolverhampton City Council","http://opendatacommunities.org/id/metropolitan-district-council/wolverhampton","708251","Total Gas & Power Limited","174610958C","-45.04","Gas","190507673","19/09/2018","Corporate Asset Management","Central Utilities to Recharge","R2101"
"Wolverhampton City Council","http://opendatacommunities.org/id/metropolitan-district-council/wolverhampton","708251","Total Gas & Power Limited","176830362","285.51","Gas","190507772","19/09/2018","Corporate Asset Management","Central Utilities to Recharge","R2101"
"Wolverhampton City Council","http://opendatacommunities.org/id/metropolitan-district-council/wolverhampton","708251","Total Gas & Power Limited","176830384","34.72","Gas","190507769","19/09/2018","Corporate Asset Management","Central Utilities to Recharge","R2101"
"Wolverhampton City Council","http://opendatacommunities.org/id/metropolitan-district-council/wolverhampton","708251","Total Gas & Power Limited","176830846","34.72","Gas","190507719","19/09/2018","Corporate Asset Management","Central Utilities to Recharge","R2101"
"Wolverhampton City Council","http://opendatacommunities.org/id/metropolitan-district-council/wolverhampton","708251","Total Gas & Power Limited","176830428","327.74","Gas","190507765","19/09/2018","Corporate Asset Management","Central Utilities to Recharge","R2101"
"Wolverhampton City Council","http://opendatacommunities.org/id/metropolitan-district-council/wolverhampton","708251","Total Gas & Power Limited","176830604","140.09","Gas","190507745","19/09/2018","Corporate Asset Management","Central Utilities to Recharge","R2101"
"Wolverhampton City Council","http://opendatacommunities.org/id/metropolitan-district-council/wolverhampton","708251","Total Gas & Power Limited","176830703","140.81","Gas","190507733","19/09/2018","Corporate Asset Management","Central Utilities to Recharge","R2101"
"Wolverhampton City Council","http://opendatacommunities.org/id/metropolitan-district-council/wolverhampton","708251","Total Gas & Power Limited","176830032","343.09","Gas","190507805","19/09/2018","Corporate Asset Management","Central Utilities to Recharge","R2101"
"Wolverhampton City Council","http://opendatacommunities.org/id/metropolitan-district-council/wolverhampton","708251","Total Gas & Power Limited","176830043","535.62","Gas","190507804","19/09/2018","Schools","Penn Hall Special School","R2101"
"Wolverhampton City Council","http://opendatacommunities.org/id/metropolitan-district-council/wolverhampton","708251","Total Gas & Power Limited","176830208","353.82","Gas","190507789","19/09/2018","Corporate Asset Management","Central Utilities to Recharge","R2101"
"Wolverhampton City Council","http://opendatacommunities.org/id/metropolitan-district-council/wolverhampton","708251","Total Gas & Power Limited","176669344","34.72","Gas","190507614","19/09/2018","Schools","Bushbury Nursery","R2101"
"Wolverhampton City Council","http://opendatacommunities.org/id/metropolitan-district-council/wolverhampton","708251","Total Gas & Power Limited","176669003","37.79","Gas","190507646","19/09/2018","Schools","Castlecroft Primary School","R2101"
"Wolverhampton City Council","http://opendatacommunities.org/id/metropolitan-district-council/wolverhampton","708251","Total Gas & Power Limited","176668926","118.44","Gas","190507654","19/09/2018","Schools","Oak Meadow Primary School","R2101"
"Wolverhampton City Council","http://opendatacommunities.org/id/metropolitan-district-council/wolverhampton","708251","Total Gas & Power Limited","176668882","34.90","Gas","190507658","19/09/2018","Schools","Wilkinson Primary School","R2101"
"Wolverhampton City Council","http://opendatacommunities.org/id/metropolitan-district-council/wolverhampton","708251","Total Gas & Power Limited","176668850","34.72","Gas","190507661","19/09/2018","Facilities Management","Management of Vacant Properties","R2101"
"Wolverhampton City Council","http://opendatacommunities.org/id/metropolitan-district-council/wolverhampton","708251","Total Gas & Power Limited","174635015C","-656.73","Gas","190507780","19/09/2018","Schools","Warstones Primary School","R2101"
"Wolverhampton City Council","http://opendatacommunities.org/id/metropolitan-district-council/wolverhampton","708251","Total Gas & Power Limited","176830110","164.46","Gas","190507798","19/09/2018","Schools","Uplands Junior School","R2101"
"Wolverhampton City Council","http://opendatacommunities.org/id/metropolitan-district-council/wolverhampton","708251","Total Gas & Power Limited","176668552","50.91","Gas","190507698","19/09/2018","Corporate Asset Management","Central Utilities to Recharge","R2101"
"Wolverhampton City Council","http://opendatacommunities.org/id/metropolitan-district-council/wolverhampton","708251","Total Gas & Power Limited","176668410","47.84","Gas","190507712","19/09/2018","Schools","Bushbury Nursery","R2101"
"Wolverhampton City Council","http://opendatacommunities.org/id/metropolitan-district-council/wolverhampton","708251","Total Gas & Power Limited","176668354","152.73","Gas","190507718","19/09/2018","Schools","Whitgreave Infant School","R2101"
"Wolverhampton City Council","http://opendatacommunities.org/id/metropolitan-district-council/wolverhampton","708251","Total Gas & Power Limited","176830329","174.40","Gas","190507776","19/09/2018","Schools","Lanesfield Primary School","R2101"
"Wolverhampton City Council","http://opendatacommunities.org/id/metropolitan-district-council/wolverhampton","708251","Total Gas & Power Limited","176830725","198.95","Gas","190507731","19/09/2018","Schools","Rakegate Primary School","R2101"
"Wolverhampton City Council","http://opendatacommunities.org/id/metropolitan-district-council/wolverhampton","708251","Total Gas & Power Limited","176830660","1,004.88","Gas","190507737","19/09/2018","Corporate Asset Management","Central Utilities to Recharge","R2101"
"Wolverhampton City Council","http://opendatacommunities.org/id/metropolitan-district-council/wolverhampton","708251","Total Gas & Power Limited","176830417","395.65","Gas","190507766","19/09/2018","Schools","Claregate Primary School","R2101"
"Wolverhampton City Council","http://opendatacommunities.org/id/metropolitan-district-council/wolverhampton","708251","Total Gas & Power Limited","176830659","47.84","Gas","190507740","19/09/2018","Corporate Asset Management","Central Utilities to Recharge","R2101"
"Wolverhampton City Council","http://opendatacommunities.org/id/metropolitan-district-council/wolverhampton","708251","Total Gas & Power Limited","176656210","120.85","Gas","190507739","19/09/2018","Corporate Asset Management","Central Utilities to Recharge","R2101"
"Wolverhampton City Council","http://opendatacommunities.org/id/metropolitan-district-council/wolverhampton","708251","Total Gas & Power Limited","171987029","458.28","Gas","190507817","19/09/2018","Corporate Asset Management","Central Utilities to Recharge","R2101"
"Wolverhampton City Council","http://opendatacommunities.org/id/metropolitan-district-council/wolverhampton","708251","Total Gas & Power Limited","176830153","198.21","Gas","190507794","19/09/2018","Schools","Long Knowle Primary School","R2101"
"Wolverhampton City Council","http://opendatacommunities.org/id/metropolitan-district-council/wolverhampton","708251","Total Gas & Power Limited","176669509","54.26","Gas","190507597","19/09/2018","Corporate Asset Management","Central Utilities to Recharge","R2101"
"Wolverhampton City Council","http://opendatacommunities.org/id/metropolitan-district-council/wolverhampton","708251","Total Gas & Power Limited","176669400","47.84","Gas","190507608","19/09/2018","Corporate Asset Management","Central Utilities to Recharge","R2101"
"Wolverhampton City Council","http://opendatacommunities.org/id/metropolitan-district-council/wolverhampton","708251","Total Gas & Power Limited","176669454","126.79","Gas","190507599","19/09/2018","Corporate Asset Management","Central Utilities to Recharge","R2101"
"Wolverhampton City Council","http://opendatacommunities.org/id/metropolitan-district-council/wolverhampton","708251","Total Gas & Power Limited","176829944","192.53","Gas","190507677","19/09/2018","Schools","St Luke�s Church of England Aided Primary School","R2101"
"Wolverhampton City Council","http://opendatacommunities.org/id/metropolitan-district-council/wolverhampton","708251","Total Gas & Power Limited","176668684","56.61","Gas","190507684","19/09/2018","Corporate Asset Management","Central Utilities to Recharge","R2101"
"Wolverhampton City Council","http://opendatacommunities.org/id/metropolitan-district-council/wolverhampton","708251","Total Gas & Power Limited","176830307","240.78","Gas","190507778","19/09/2018","Schools","West Park Primary School","R2101"
"Wolverhampton City Council","http://opendatacommunities.org/id/metropolitan-district-council/wolverhampton","708251","Total Gas & Power Limited","176420205","52.39","Electricity","190508656","21/09/2018","Corporate Asset Management","Central Utilities to Recharge","R2100"
"Wolverhampton City Council","http://opendatacommunities.org/id/metropolitan-district-council/wolverhampton","708251","Total Gas & Power Limited","176277051","38.75","Electricity","190508723","21/09/2018","Facilities Management","Management of Vacant Properties","R2100"
"Wolverhampton City Council","http://opendatacommunities.org/id/metropolitan-district-council/wolverhampton","708251","Total Gas & Power Limited","176276721","34.79","Electricity","190508704","21/09/2018","Corporate Asset Management","Central Utilities to Recharge","R2100"
"Wolverhampton City Council","http://opendatacommunities.org/id/metropolitan-district-council/wolverhampton","708251","Total Gas & Power Limited","176452996","3,290.85","Electricity","190508519","21/09/2018","Corporate Asset Management","Central Utilities to Recharge","R2100"
"Wolverhampton City Council","http://opendatacommunities.org/id/metropolitan-district-council/wolverhampton","708251","Total Gas & Power Limited","176502826","43.89","Electricity","190508551","21/09/2018","Corporate Asset Management","Central Utilities to Recharge","R2100"
"Wolverhampton City Council","http://opendatacommunities.org/id/metropolitan-district-council/wolverhampton","708251","Total Gas & Power Limited","176830164","1,293.66","Gas","190507793","19/09/2018","Corporate Asset Management","Central Utilities to Recharge","R2101"
"Wolverhampton City Council","http://opendatacommunities.org/id/metropolitan-district-council/wolverhampton","708251","Total Gas & Power Limited","176668948","53.45","Gas","190507652","19/09/2018","Corporate Asset Management","Central Utilities to Recharge","R2101"
"Wolverhampton City Council","http://opendatacommunities.org/id/metropolitan-district-council/wolverhampton","708251","Total Gas & Power Limited","175239685","510.21","Electricity","190502053","05/09/2018","Corporate Asset Management","Central Utilities to Recharge","R2100"
"Wolverhampton City Council","http://opendatacommunities.org/id/metropolitan-district-council/wolverhampton","708251","Total Gas & Power Limited","175240114","992.69","Electricity","190502076","05/09/2018","Corporate Asset Management","Central Utilities to Recharge","R2100"
"Wolverhampton City Council","http://opendatacommunities.org/id/metropolitan-district-council/wolverhampton","708251","Total Gas & Power Limited","175144513","576.44","Electricity","190502095","05/09/2018","Schools","Wood End Primary School","R2100"
"Wolverhampton City Council","http://opendatacommunities.org/id/metropolitan-district-council/wolverhampton","708251","Total Gas & Power Limited","175240466","183.81","Electricity","190502093","05/09/2018","Corporate Asset Management","Central Utilities to Recharge","R2100"
"Wolverhampton City Council","http://opendatacommunities.org/id/metropolitan-district-council/wolverhampton","708251","Total Gas & Power Limited","175183618","544.28","Electricity","190502166","05/09/2018","Schools","Castlecroft Primary School","R2100"
"Wolverhampton City Council","http://opendatacommunities.org/id/metropolitan-district-council/wolverhampton","708251","Total Gas & Power Limited","175177931","538.31","Electricity","190502186","05/09/2018","Corporate Asset Management","Central Utilities to Recharge","R2100"
"Wolverhampton City Council","http://opendatacommunities.org/id/metropolitan-district-council/wolverhampton","708251","Total Gas & Power Limited","175075719","592.04","Electricity","190502230","05/09/2018","Schools","Holy Trinity Catholic Primary School","R2100"
"Wolverhampton City Council","http://opendatacommunities.org/id/metropolitan-district-council/wolverhampton","708251","Total Gas & Power Limited","175075862","126.46","Electricity","190502235","05/09/2018","Corporate Asset Management","Central Utilities to Recharge","R2100"
"Wolverhampton City Council","http://opendatacommunities.org/id/metropolitan-district-council/wolverhampton","708251","Total Gas & Power Limited","175178350","201.25","Electricity","190502194","05/09/2018","Schools","Ashmore Park Nursery","R2100"
"Wolverhampton City Council","http://opendatacommunities.org/id/metropolitan-district-council/wolverhampton","708251","Total Gas & Power Limited","175129300","927.47","Electricity","190502276","05/09/2018","Corporate Asset Management","Central Utilities to Recharge","R2100"
"Wolverhampton City Council","http://opendatacommunities.org/id/metropolitan-district-council/wolverhampton","708251","Total Gas & Power Limited","175075367","504.73","Electricity","190502222","05/09/2018","Corporate Asset Management","Central Utilities to Recharge","R2100"
"Wolverhampton City Council","http://opendatacommunities.org/id/metropolitan-district-council/wolverhampton","708251","Total Gas & Power Limited","175129432","162.15","Electricity","190502289","05/09/2018","Corporate Asset Management","Central Utilities to Recharge","R2100"
"Wolverhampton City Council","http://opendatacommunities.org/id/metropolitan-district-council/wolverhampton","708251","Total Gas & Power Limited","175239289","-249.01","Electricity","190502030","05/09/2018","Corporate Asset Management","Central Utilities to Recharge","R2100"
"Wolverhampton City Council","http://opendatacommunities.org/id/metropolitan-district-council/wolverhampton","708251","Total Gas & Power Limited","175181891","68.39","Electricity","190502124","05/09/2018","Corporate Asset Management","Central Utilities to Recharge","R2100"
"Wolverhampton City Council","http://opendatacommunities.org/id/metropolitan-district-council/wolverhampton","708251","Total Gas & Power Limited","175145360","66.07","Electricity","190502108","05/09/2018","Corporate Asset Management","Central Utilities to Recharge","R2100"
"Wolverhampton City Council","http://opendatacommunities.org/id/metropolitan-district-council/wolverhampton","708251","Total Gas & Power Limited","175240136","457.01","Electricity","190502078","05/09/2018","Corporate Asset Management","Central Utilities to Recharge","R2100"
"Wolverhampton City Council","http://opendatacommunities.org/id/metropolitan-district-council/wolverhampton","708251","Total Gas & Power Limited","175074949","472.89","Electricity","190502212","05/09/2018","Schools","Woodthorne Primary School","R2100"
"Wolverhampton City Council","http://opendatacommunities.org/id/metropolitan-district-council/wolverhampton","708251","Total Gas & Power Limited","175075114","64.74","Electricity","190502217","05/09/2018","Schools","Wodensfield Primary School","R2100"
"Wolverhampton City Council","http://opendatacommunities.org/id/metropolitan-district-council/wolverhampton","708251","Total Gas & Power Limited","175076808","422.84","Electricity","190502251","05/09/2018","Schools","Long Knowle Primary School","R2100"
"Wolverhampton City Council","http://opendatacommunities.org/id/metropolitan-district-council/wolverhampton","708251","Total Gas & Power Limited","175129080","61.89","Electricity","190502268","05/09/2018","Corporate Asset Management","Central Utilities to Recharge","R2100"
"Wolverhampton City Council","http://opendatacommunities.org/id/metropolitan-district-council/wolverhampton","708251","Total Gas & Power Limited","175183255","190.76","Electricity","190502154","05/09/2018","Corporate Asset Management","Central Utilities to Recharge","R2100"
"Wolverhampton City Council","http://opendatacommunities.org/id/metropolitan-district-council/wolverhampton","708251","Total Gas & Power Limited","176668497","45.03","Gas","190507704","19/09/2018","Corporate Asset Management","Central Utilities to Recharge","R2101"
"Wolverhampton City Council","http://opendatacommunities.org/id/metropolitan-district-council/wolverhampton","708251","Total Gas & Power Limited","176830087C","-109.72","Gas","190507825","19/09/2018","Corporate Asset Management","Central Utilities to Recharge","R2101"
"Wolverhampton City Council","http://opendatacommunities.org/id/metropolitan-district-council/wolverhampton","708251","Total Gas & Power Limited","171314423C","-47.84","Gas","190507589","19/09/2018","Facilities Management","Management of Vacant Properties","R2101"
"Wolverhampton City Council","http://opendatacommunities.org/id/metropolitan-district-council/wolverhampton","708251","Total Gas & Power Limited","171296779C","-59.82","Gas","190507593","19/09/2018","Corporate Asset Management","Central Utilities to Recharge","R2101"
"Wolverhampton City Council","http://opendatacommunities.org/id/metropolitan-district-council/wolverhampton","708251","Total Gas & Power Limited","168002202C","-39.16","Gas","190507587","19/09/2018","Facilities Management","Management of Vacant Properties","R2101"
"Wolverhampton City Council","http://opendatacommunities.org/id/metropolitan-district-council/wolverhampton","708251","Total Gas & Power Limited","176829966","149.12","Gas","190507812","19/09/2018","Schools","Christ Church (Church of England) Junior School","R2101"
"Wolverhampton City Council","http://opendatacommunities.org/id/metropolitan-district-council/wolverhampton","708251","Total Gas & Power Limited","176829933","47.20","Gas","190507675","19/09/2018","Corporate Asset Management","Central Utilities to Recharge","R2101"
"Wolverhampton City Council","http://opendatacommunities.org/id/metropolitan-district-council/wolverhampton","708251","Total Gas & Power Limited","176669487","54.44","Gas","190507603","19/09/2018","Schools","St Luke�s Church of England Aided Primary School","R2101"
"Wolverhampton City Council","http://opendatacommunities.org/id/metropolitan-district-council/wolverhampton","708251","Total Gas & Power Limited","176668970","52.45","Gas","190507649","19/09/2018","Schools","Penn Hall Special School","R2101"
"Wolverhampton City Council","http://opendatacommunities.org/id/metropolitan-district-council/wolverhampton","708251","Total Gas & Power Limited","176420029","202.20","Electricity","190508649","21/09/2018","Corporate Asset Management","Central Utilities to Recharge","R2100"
"Wolverhampton City Council","http://opendatacommunities.org/id/metropolitan-district-council/wolverhampton","708251","Total Gas & Power Limited","176277227","409.32","Electricity","190508733","21/09/2018","Schools","Dovecotes Primary School","R2100"
"Wolverhampton City Council","http://opendatacommunities.org/id/metropolitan-district-council/wolverhampton","708251","Total Gas & Power Limited","176499295","432.17","Electricity","190508695","21/09/2018","Corporate Asset Management","Central Utilities to Recharge","R2100"
"Wolverhampton City Council","http://opendatacommunities.org/id/metropolitan-district-council/wolverhampton","708251","Total Gas & Power Limited","175075554","50.92","Electricity","190502226","05/09/2018","Schools","St Luke�s Church of England Aided Primary School","R2100"
"Wolverhampton City Council","http://opendatacommunities.org/id/metropolitan-district-council/wolverhampton","708251","Total Gas & Power Limited","175240390","754.88","Electricity","190502092","05/09/2018","Corporate Asset Management","Central Utilities to Recharge","R2100"
"Wolverhampton City Council","http://opendatacommunities.org/id/metropolitan-district-council/wolverhampton","708251","Total Gas & Power Limited","175074960","189.29","Electricity","190502214","05/09/2018","Corporate Asset Management","Central Utilities to Recharge","R2100"
"Wolverhampton City Council","http://opendatacommunities.org/id/metropolitan-district-council/wolverhampton","708251","Total Gas & Power Limited","176668453","60.51","Gas","190507708","19/09/2018","Corporate Asset Management","Central Utilities to Recharge","R2101"
"Wolverhampton City Council","http://opendatacommunities.org/id/metropolitan-district-council/wolverhampton","708251","Total Gas & Power Limited","175145460","33.62","Electricity","190502111","05/09/2018","Corporate Asset Management","Central Utilities to Recharge","R2100"
"Wolverhampton City Council","http://opendatacommunities.org/id/metropolitan-district-council/wolverhampton","708251","Total Gas & Power Limited","175239950","837.08","Electricity","190502061","05/09/2018","Corporate Asset Management","Central Utilities to Recharge","R2100"
"Wolverhampton City Council","http://opendatacommunities.org/id/metropolitan-district-council/wolverhampton","708251","Total Gas & Power Limited","176669300","210.71","Gas","190507618","19/09/2018","Corporate Asset Management","Central Utilities to Recharge","R2101"
"Wolverhampton City Council","http://opendatacommunities.org/id/metropolitan-district-council/wolverhampton","708251","Total Gas & Power Limited","175240170","672.05","Electricity","190502082","05/09/2018","Corporate Asset Management","Central Utilities to Recharge","R2100"
"Wolverhampton City Council","http://opendatacommunities.org/id/metropolitan-district-council/wolverhampton","708251","Total Gas & Power Limited","175239751","887.93","Electricity","190502055","05/09/2018","Corporate Asset Management","Central Utilities to Recharge","R2100"
"Wolverhampton City Council","http://opendatacommunities.org/id/metropolitan-district-council/wolverhampton","708251","Total Gas & Power Limited","175183630","38.06","Electricity","190502167","05/09/2018","Corporate Asset Management","Central Utilities to Recharge","R2100"
"Wolverhampton City Council","http://opendatacommunities.org/id/metropolitan-district-council/wolverhampton","708251","Total Gas & Power Limited","176513881","239.38","Electricity","190508640","21/09/2018","Schools","Uplands Junior School","R2100"
"Wolverhampton City Council","http://opendatacommunities.org/id/metropolitan-district-council/wolverhampton","708251","Total Gas & Power Limited","176513837","128.70","Electricity","190508639","21/09/2018","Corporate Asset Management","Central Utilities to Recharge","R2100"
"Wolverhampton City Council","http://opendatacommunities.org/id/metropolitan-district-council/wolverhampton","708251","Total Gas & Power Limited","176514145","147.45","Electricity","190508644","21/09/2018","Corporate Asset Management","Central Utilities to Recharge","R2100"
"Wolverhampton City Council","http://opendatacommunities.org/id/metropolitan-district-council/wolverhampton","708251","Total Gas & Power Limited","172983079C","-157.12","Gas","190507823","19/09/2018","Corporate Asset Management","Central Utilities to Recharge","R2101"
"Wolverhampton City Council","http://opendatacommunities.org/id/metropolitan-district-council/wolverhampton","708251","Total Gas & Power Limited","176668607","47.84","Gas","190507693","19/09/2018","Corporate Asset Management","Central Utilities to Recharge","R2101"
"Wolverhampton City Council","http://opendatacommunities.org/id/metropolitan-district-council/wolverhampton","708251","Total Gas & Power Limited","176830593","146.41","Gas","190507746","19/09/2018","Corporate Asset Management","Central Utilities to Recharge","R2101"
"Wolverhampton City Council","http://opendatacommunities.org/id/metropolitan-district-council/wolverhampton","708251","Total Gas & Power Limited","176668915","71.09","Gas","190507655","19/09/2018","Schools","Bushbury Hill Primary School","R2101"
"Wolverhampton City Council","http://opendatacommunities.org/id/metropolitan-district-council/wolverhampton","708251","Total Gas & Power Limited","175177690","181.98","Electricity","190502179","05/09/2018","Corporate Asset Management","Central Utilities to Recharge","R2100"
"Wolverhampton City Council","http://opendatacommunities.org/id/metropolitan-district-council/wolverhampton","708251","Total Gas & Power Limited","176830670","444.88","Gas","190507736","19/09/2018","Corporate Asset Management","Central Utilities to Recharge","R2101"
"Wolverhampton City Council","http://opendatacommunities.org/id/metropolitan-district-council/wolverhampton","708251","Total Gas & Power Limited","176668750","216.06","Gas","190507678","19/09/2018","Corporate Asset Management","Central Utilities to Recharge","R2101"
"Wolverhampton City Council","http://opendatacommunities.org/id/metropolitan-district-council/wolverhampton","708251","Total Gas & Power Limited","176419952","275.37","Electricity","190508647","21/09/2018","Corporate Asset Management","Central Utilities to Recharge","R2100"
"Wolverhampton City Council","http://opendatacommunities.org/id/metropolitan-district-council/wolverhampton","708251","Total Gas & Power Limited","176420172","173.02","Electricity","190508655","21/09/2018","Corporate Asset Management","Central Utilities to Recharge","R2100"
"Wolverhampton City Council","http://opendatacommunities.org/id/metropolitan-district-council/wolverhampton","708251","Total Gas & Power Limited","176420700","68.28","Electricity","190508665","21/09/2018","Corporate Asset Management","Central Utilities to Recharge","R2100"
"Wolverhampton City Council","http://opendatacommunities.org/id/metropolitan-district-council/wolverhampton","708251","Total Gas & Power Limited","176276941","690.36","Electricity","190508713","21/09/2018","Schools","Wilkinson Primary School","R2100"
"Wolverhampton City Council","http://opendatacommunities.org/id/metropolitan-district-council/wolverhampton","708251","Total Gas & Power Limited","176498162","29.35","Electricity","190508676","21/09/2018","Facilities Management","Management of Vacant Properties","R2100"
"Wolverhampton City Council","http://opendatacommunities.org/id/metropolitan-district-council/wolverhampton","708251","Total Gas & Power Limited","176277029","642.53","Electricity","190508721","21/09/2018","Corporate Asset Management","Central Utilities to Recharge","R2100"
"Wolverhampton City Council","http://opendatacommunities.org/id/metropolitan-district-council/wolverhampton","708251","Total Gas & Power Limited","176277139","454.24","Electricity","190508731","21/09/2018","Corporate Asset Management","Central Utilities to Recharge","R2100"
"Wolverhampton City Council","http://opendatacommunities.org/id/metropolitan-district-council/wolverhampton","708251","Total Gas & Power Limited","175529865","0.58","Electricity","190508696","21/09/2018","Corporate Asset Management","Central Utilities to Recharge","R2100"
"Wolverhampton City Council","http://opendatacommunities.org/id/metropolitan-district-council/wolverhampton","708251","Total Gas & Power Limited","175541140","59.73","Electricity","190508697","21/09/2018","Corporate Asset Management","Central Utilities to Recharge","R2100"
"Wolverhampton City Council","http://opendatacommunities.org/id/metropolitan-district-council/wolverhampton","708251","Total Gas & Power Limited","176277095","318.53","Electricity","190508727","21/09/2018","Corporate Asset Management","Central Utilities to Recharge","R2100"
"Wolverhampton City Council","http://opendatacommunities.org/id/metropolitan-district-council/wolverhampton","708251","Total Gas & Power Limited","176498371","322.62","Electricity","190508680","21/09/2018","Corporate Asset Management","Central Utilities to Recharge","R2100"
"Wolverhampton City Council","http://opendatacommunities.org/id/metropolitan-district-council/wolverhampton","708251","Total Gas & Power Limited","176277117","19.06","Electricity","190508729","21/09/2018","Corporate Asset Management","Central Utilities to Recharge","R2100"
"Wolverhampton City Council","http://opendatacommunities.org/id/metropolitan-district-council/wolverhampton","708251","Total Gas & Power Limited","176277238","294.90","Electricity","190508734","21/09/2018","Corporate Asset Management","Central Utilities to Recharge","R2100"
"Wolverhampton City Council","http://opendatacommunities.org/id/metropolitan-district-council/wolverhampton","708251","Total Gas & Power Limited","176499262","363.82","Electricity","190508694","21/09/2018","Schools","Wood End Primary School","R2100"
"Wolverhampton City Council","http://opendatacommunities.org/id/metropolitan-district-council/wolverhampton","708251","Total Gas & Power Limited","176452688","936.84","Electricity","190508741","21/09/2018","Corporate Asset Management","Central Utilities to Recharge","R2100"
"Wolverhampton City Council","http://opendatacommunities.org/id/metropolitan-district-council/wolverhampton","708251","Total Gas & Power Limited","176276677","738.34","Electricity","190508700","21/09/2018","Corporate Asset Management","Central Utilities to Recharge","R2100"
"Wolverhampton City Council","http://opendatacommunities.org/id/metropolitan-district-council/wolverhampton","708251","Total Gas & Power Limited","176498899","1,455.30","Electricity","190508687","21/09/2018","Schools","Warstones Primary School","R2100"
"Wolverhampton City Council","http://opendatacommunities.org/id/metropolitan-district-council/wolverhampton","708251","Total Gas & Power Limited","176276974","893.48","Electricity","190508716","21/09/2018","Corporate Asset Management","Central Utilities to Recharge","R2100"
"Wolverhampton City Council","http://opendatacommunities.org/id/metropolitan-district-council/wolverhampton","708251","Total Gas & Power Limited","176276985","478.97","Electricity","190508717","21/09/2018","Schools","Claregate Primary School","R2100"
"Wolverhampton City Council","http://opendatacommunities.org/id/metropolitan-district-council/wolverhampton","708251","Total Gas & Power Limited","176276699","61.33","Electricity","190508702","21/09/2018","Schools","Dovecotes Primary School","R2100"
"Wolverhampton City Council","http://opendatacommunities.org/id/metropolitan-district-council/wolverhampton","708251","Total Gas & Power Limited","176394036","101.96","Electricity","190508753","21/09/2018","Corporate Asset Management","Central Utilities to Recharge","R2100"
"Wolverhampton City Council","http://opendatacommunities.org/id/metropolitan-district-council/wolverhampton","708251","Total Gas & Power Limited","175239399C","-20.36","Electricity","190508763","21/09/2018","Corporate Asset Management","Central Utilities to Recharge","R2100"
"Wolverhampton City Council","http://opendatacommunities.org/id/metropolitan-district-council/wolverhampton","708251","Total Gas & Power Limited","176394102","9.83","Electricity","190508772","21/09/2018","Corporate Asset Management","Central Utilities to Recharge","R2100"
"Wolverhampton City Council","http://opendatacommunities.org/id/metropolitan-district-council/wolverhampton","708251","Total Gas & Power Limited","176394146","116.31","Electricity","190508776","21/09/2018","Corporate Asset Management","Central Utilities to Recharge","R2100"
"Wolverhampton City Council","http://opendatacommunities.org/id/metropolitan-district-council/wolverhampton","708251","Total Gas & Power Limited","176394135","149.32","Electricity","190508775","21/09/2018","Corporate Asset Management","Central Utilities to Recharge","R2100"
"Wolverhampton City Council","http://opendatacommunities.org/id/metropolitan-district-council/wolverhampton","708251","Total Gas & Power Limited","175458244","8.65","Electricity","190508788","21/09/2018","Corporate Asset Management","Central Utilities to Recharge","R2100"
"Wolverhampton City Council","http://opendatacommunities.org/id/metropolitan-district-council/wolverhampton","708251","Total Gas & Power Limited","169480030C","-1,324.84","Electricity","190508500","21/09/2018","Corporate Asset Management","Central Utilities to Recharge","R2100"
"Wolverhampton City Council","http://opendatacommunities.org/id/metropolitan-district-council/wolverhampton","708251","Total Gas & Power Limited","176452820","510.42","Electricity","190508496","21/09/2018","Corporate Asset Management","Central Utilities to Recharge","R2100"
"Wolverhampton City Council","http://opendatacommunities.org/id/metropolitan-district-council/wolverhampton","708251","Total Gas & Power Limited","176453073","25.18","Electricity","190508522","21/09/2018","Corporate Asset Management","Central Utilities to Recharge","R2100"
"Wolverhampton City Council","http://opendatacommunities.org/id/metropolitan-district-council/wolverhampton","708251","Total Gas & Power Limited","176452875","801.58","Electricity","190508509","21/09/2018","Corporate Asset Management","Central Utilities to Recharge","R2100"
"Wolverhampton City Council","http://opendatacommunities.org/id/metropolitan-district-council/wolverhampton","708251","Total Gas & Power Limited","176453667","266.92","Electricity","190508536","21/09/2018","Corporate Asset Management","Central Utilities to Recharge","R2100"
"Wolverhampton City Council","http://opendatacommunities.org/id/metropolitan-district-council/wolverhampton","708251","Total Gas & Power Limited","176363632","254.25","Electricity","190508582","21/09/2018","Corporate Asset Management","Central Utilities to Recharge","R2100"
"Wolverhampton City Council","http://opendatacommunities.org/id/metropolitan-district-council/wolverhampton","708251","Total Gas & Power Limited","176363973","65.55","Electricity","190508588","21/09/2018","Corporate Asset Management","Central Utilities to Recharge","R2100"
"Wolverhampton City Council","http://opendatacommunities.org/id/metropolitan-district-council/wolverhampton","708251","Total Gas & Power Limited","176363951","28.51","Electricity","190508587","21/09/2018","Schools","Holy Trinity Catholic Primary School","R2100"
"Wolverhampton City Council","http://opendatacommunities.org/id/metropolitan-district-council/wolverhampton","708251","Total Gas & Power Limited","176363896","23.48","Electricity","190508585","21/09/2018","Operation & Maintenance of Existing Network","Rechargeable Works to Capital - Contract Annual Costs","R2100"
"Wolverhampton City Council","http://opendatacommunities.org/id/metropolitan-district-council/wolverhampton","708251","Total Gas & Power Limited","176502199","22.16","Electricity","190508542","21/09/2018","Corporate Asset Management","Central Utilities to Recharge","R2100"
"Wolverhampton City Council","http://opendatacommunities.org/id/metropolitan-district-council/wolverhampton","708251","Total Gas & Power Limited","176503079","14.07","Electricity","190508558","21/09/2018","Corporate Asset Management","Central Utilities to Recharge","R2100"
"Wolverhampton City Council","http://opendatacommunities.org/id/metropolitan-district-council/wolverhampton","708251","Total Gas & Power Limited","176503057","141.61","Electricity","190508557","21/09/2018","Corporate Asset Management","Central Utilities to Recharge","R2100"
"Wolverhampton City Council","http://opendatacommunities.org/id/metropolitan-district-council/wolverhampton","708251","Total Gas & Power Limited","176513496","581.09","Electricity","190508627","21/09/2018","Corporate Asset Management","Central Utilities to Recharge","R2100"
"Wolverhampton City Council","http://opendatacommunities.org/id/metropolitan-district-council/wolverhampton","708251","Total Gas & Power Limited","176502727","181.71","Electricity","190508550","21/09/2018","Schools","Merridale Primary School","R2100"
"Wolverhampton City Council","http://opendatacommunities.org/id/metropolitan-district-council/wolverhampton","708251","Total Gas & Power Limited","176503002","81.54","Electricity","190508555","21/09/2018","Corporate Asset Management","Central Utilities to Recharge","R2100"
"Wolverhampton City Council","http://opendatacommunities.org/id/metropolitan-district-council/wolverhampton","708251","Total Gas & Power Limited","176502518","86.54","Electricity","190508548","21/09/2018","Corporate Asset Management","Central Utilities to Recharge","R2100"
"Wolverhampton City Council","http://opendatacommunities.org/id/metropolitan-district-council/wolverhampton","708251","Total Gas & Power Limited","176513397","542.76","Electricity","190508624","21/09/2018","Schools","Castlecroft Primary School","R2100"
"Wolverhampton City Council","http://opendatacommunities.org/id/metropolitan-district-council/wolverhampton","708251","Total Gas & Power Limited","176503310","332.65","Electricity","190508565","21/09/2018","Corporate Asset Management","Central Utilities to Recharge","R2100"
"Wolverhampton City Council","http://opendatacommunities.org/id/metropolitan-district-council/wolverhampton","708251","Total Gas & Power Limited","176513617","217.18","Electricity","190508630","21/09/2018","Corporate Asset Management","Central Utilities to Recharge","R2100"
"Wolverhampton City Council","http://opendatacommunities.org/id/metropolitan-district-council/wolverhampton","708251","Total Gas & Power Limited","176503651","111.02","Electricity","190508572","21/09/2018","Corporate Asset Management","Central Utilities to Recharge","R2100"
"Wolverhampton City Council","http://opendatacommunities.org/id/metropolitan-district-council/wolverhampton","708251","Total Gas & Power Limited","176513661","96.49","Electricity","190508631","21/09/2018","Transportation","Bridges & Subways","R2100"
"Wolverhampton City Council","http://opendatacommunities.org/id/metropolitan-district-council/wolverhampton","708251","Total Gas & Power Limited","176503156","76.30","Electricity","190508560","21/09/2018","Corporate Asset Management","Central Utilities to Recharge","R2100"
"Wolverhampton City Council","http://opendatacommunities.org/id/metropolitan-district-council/wolverhampton","708251","Total Gas & Power Limited","176513760","205.04","Electricity","190508636","21/09/2018","Corporate Asset Management","Central Utilities to Recharge","R2100"
"Wolverhampton City Council","http://opendatacommunities.org/id/metropolitan-district-council/wolverhampton","708251","Total Gas & Power Limited","176513705","14.54","Electricity","190508634","21/09/2018","Corporate Asset Management","Central Utilities to Recharge","R2100"
"Wolverhampton City Council","http://opendatacommunities.org/id/metropolitan-district-council/wolverhampton","708251","Total Gas & Power Limited","176364006","16.50","Electricity","190508590","21/09/2018","Corporate Asset Management","Central Utilities to Recharge","R2100"
"Wolverhampton City Council","http://opendatacommunities.org/id/metropolitan-district-council/wolverhampton","708251","Total Gas & Power Limited","176503442","56.74","Electricity","190508567","21/09/2018","Schools","Trinity Church of England Primary School","R2100"
"Wolverhampton City Council","http://opendatacommunities.org/id/metropolitan-district-council/wolverhampton","708251","Total Gas & Power Limited","176503200","280.59","Electricity","190508562","21/09/2018","Schools","Holy Trinity Catholic Primary School","R2100"
"Wolverhampton City Council","http://opendatacommunities.org/id/metropolitan-district-council/wolverhampton","708251","Total Gas & Power Limited","176364842","628.15","Electricity","190508604","21/09/2018","Corporate Asset Management","Central Utilities to Recharge","R2100"
"Wolverhampton City Council","http://opendatacommunities.org/id/metropolitan-district-council/wolverhampton","708251","Total Gas & Power Limited","176512935","57.70","Electricity","190508614","21/09/2018","Corporate Asset Management","Central Utilities to Recharge","R2100"
"Wolverhampton City Council","http://opendatacommunities.org/id/metropolitan-district-council/wolverhampton","708251","Total Gas & Power Limited","176512814","79.71","Electricity","190508608","21/09/2018","Corporate Asset Management","Central Utilities to Recharge","R2100"
"Wolverhampton City Council","http://opendatacommunities.org/id/metropolitan-district-council/wolverhampton","708251","Total Gas & Power Limited","176513023","27.26","Electricity","190508618","21/09/2018","Corporate Asset Management","Central Utilities to Recharge","R2100"
"Wolverhampton City Council","http://opendatacommunities.org/id/metropolitan-district-council/wolverhampton","708251","Total Gas & Power Limited","175239322","9.62","Electricity","190502034","05/09/2018","Corporate Asset Management","Central Utilities to Recharge","R2100"
"Wolverhampton City Council","http://opendatacommunities.org/id/metropolitan-district-council/wolverhampton","708251","Total Gas & Power Limited","175239400","94.53","Electricity","190502038","05/09/2018","Corporate Asset Management","Central Utilities to Recharge","R2100"
"Wolverhampton City Council","http://opendatacommunities.org/id/metropolitan-district-council/wolverhampton","708251","Total Gas & Power Limited","175239454","14.36","Electricity","190502040","05/09/2018","Estates and Valuations","Industrial Premises ; NEC,Monmore Road","R2100"
"Wolverhampton City Council","http://opendatacommunities.org/id/metropolitan-district-council/wolverhampton","708251","Total Gas & Power Limited","175240356","25.70","Electricity","190502089","05/09/2018","Corporate Asset Management","Central Utilities to Recharge","R2100"
"Wolverhampton City Council","http://opendatacommunities.org/id/metropolitan-district-council/wolverhampton","708251","Total Gas & Power Limited","175240169","1,748.11","Electricity","190502081","05/09/2018","Corporate Asset Management","Central Utilities to Recharge","R2100"
"Wolverhampton City Council","http://opendatacommunities.org/id/metropolitan-district-council/wolverhampton","708251","Total Gas & Power Limited","175239817","35.75","Electricity","190502057","05/09/2018","Corporate Asset Management","Central Utilities to Recharge","R2100"
"Wolverhampton City Council","http://opendatacommunities.org/id/metropolitan-district-council/wolverhampton","708251","Total Gas & Power Limited","175239850","298.09","Electricity","190502058","05/09/2018","Corporate Asset Management","Central Utilities to Recharge","R2100"
"Wolverhampton City Council","http://opendatacommunities.org/id/metropolitan-district-council/wolverhampton","708251","Total Gas & Power Limited","175239960","264.11","Electricity","190502062","05/09/2018","Corporate Asset Management","Central Utilities to Recharge","R2100"
"Wolverhampton City Council","http://opendatacommunities.org/id/metropolitan-district-council/wolverhampton","708251","Total Gas & Power Limited","175145613","29.66","Electricity","190502113","05/09/2018","Facilities Management","Management of Vacant Properties","R2100"
"Wolverhampton City Council","http://opendatacommunities.org/id/metropolitan-district-council/wolverhampton","708251","Total Gas & Power Limited","175145239","31.93","Electricity","190502107","05/09/2018","Corporate Asset Management","Central Utilities to Recharge","R2100"
"Wolverhampton City Council","http://opendatacommunities.org/id/metropolitan-district-council/wolverhampton","708251","Total Gas & Power Limited","175144656","87.27","Electricity","190502098","05/09/2018","Schools","Phoenix Nursery","R2100"
"Wolverhampton City Council","http://opendatacommunities.org/id/metropolitan-district-council/wolverhampton","708251","Total Gas & Power Limited","175146240","328.56","Electricity","190502122","05/09/2018","Schools","Bilston Nursery","R2100"
"Wolverhampton City Council","http://opendatacommunities.org/id/metropolitan-district-council/wolverhampton","708251","Total Gas & Power Limited","175145965","401.22","Electricity","190502117","05/09/2018","Schools","Colton Hills Community School","R2100"
"Wolverhampton City Council","http://opendatacommunities.org/id/metropolitan-district-council/wolverhampton","708251","Total Gas & Power Limited","175182518","20.69","Electricity","190502138","05/09/2018","Corporate Asset Management","Central Utilities to Recharge","R2100"
"Wolverhampton City Council","http://opendatacommunities.org/id/metropolitan-district-council/wolverhampton","708251","Total Gas & Power Limited","175146010","14.07","Electricity","190502118","05/09/2018","Corporate Asset Management","Central Utilities to Recharge","R2100"
"Wolverhampton City Council","http://opendatacommunities.org/id/metropolitan-district-council/wolverhampton","708251","Total Gas & Power Limited","175182595","506.29","Electricity","190502142","05/09/2018","Schools","St Patrick�s Catholic Primary School","R2100"
"Wolverhampton City Council","http://opendatacommunities.org/id/metropolitan-district-council/wolverhampton","708251","Total Gas & Power Limited","175183321","8.36","Electricity","190502157","05/09/2018","Corporate Asset Management","Central Utilities to Recharge","R2100"
"Wolverhampton City Council","http://opendatacommunities.org/id/metropolitan-district-council/wolverhampton","708251","Total Gas & Power Limited","175182760","1,206.70","Electricity","190502145","05/09/2018","Corporate Asset Management","Central Utilities to Recharge","R2100"
"Wolverhampton City Council","http://opendatacommunities.org/id/metropolitan-district-council/wolverhampton","708251","Total Gas & Power Limited","175177810","19.56","Electricity","190502183","05/09/2018","Corporate Asset Management","Central Utilities to Recharge","R2100"
"Wolverhampton City Council","http://opendatacommunities.org/id/metropolitan-district-council/wolverhampton","708251","Total Gas & Power Limited","175177722","27.53","Electricity","190502181","05/09/2018","Corporate Asset Management","Central Utilities to Recharge","R2100"
"Wolverhampton City Council","http://opendatacommunities.org/id/metropolitan-district-council/wolverhampton","708251","Total Gas & Power Limited","175177700","16.17","Electricity","190502180","05/09/2018","Corporate Asset Management","Central Utilities to Recharge","R2100"
"Wolverhampton City Council","http://opendatacommunities.org/id/metropolitan-district-council/wolverhampton","708251","Total Gas & Power Limited","175178118","276.65","Electricity","190502190","05/09/2018","Corporate Asset Management","Central Utilities to Recharge","R2100"
"Wolverhampton City Council","http://opendatacommunities.org/id/metropolitan-district-council/wolverhampton","708251","Total Gas & Power Limited","175178063","209.41","Electricity","190502189","05/09/2018","Corporate Asset Management","Central Utilities to Recharge","R2100"
"Wolverhampton City Council","http://opendatacommunities.org/id/metropolitan-district-council/wolverhampton","708251","Total Gas & Power Limited","175178195","19.95","Electricity","190502191","05/09/2018","Corporate Asset Management","Central Utilities to Recharge","R2100"
"Wolverhampton City Council","http://opendatacommunities.org/id/metropolitan-district-council/wolverhampton","708251","Total Gas & Power Limited","175178657","28.51","Electricity","190502197","05/09/2018","Corporate Asset Management","Central Utilities to Recharge","R2100"
"Wolverhampton City Council","http://opendatacommunities.org/id/metropolitan-district-council/wolverhampton","708251","Total Gas & Power Limited","175075763","72.78","Electricity","190502232","05/09/2018","Corporate Asset Management","Central Utilities to Recharge","R2100"
"Wolverhampton City Council","http://opendatacommunities.org/id/metropolitan-district-council/wolverhampton","708251","Total Gas & Power Limited","175075840","14.07","Electricity","190502234","05/09/2018","Corporate Asset Management","Central Utilities to Recharge","R2100"
"Wolverhampton City Council","http://opendatacommunities.org/id/metropolitan-district-council/wolverhampton","708251","Total Gas & Power Limited","175178790","17.32","Electricity","190502200","05/09/2018","Corporate Asset Management","Central Utilities to Recharge","R2100"
"Wolverhampton City Council","http://opendatacommunities.org/id/metropolitan-district-council/wolverhampton","708251","Total Gas & Power Limited","175178910","293.24","Electricity","190502206","05/09/2018","Corporate Asset Management","Central Utilities to Recharge","R2100"
"Wolverhampton City Council","http://opendatacommunities.org/id/metropolitan-district-council/wolverhampton","708251","Total Gas & Power Limited","175075268","88.92","Electricity","190502220","05/09/2018","Corporate Asset Management","Central Utilities to Recharge","R2100"
"Wolverhampton City Council","http://opendatacommunities.org/id/metropolitan-district-council/wolverhampton","708251","Total Gas & Power Limited","175129267","1,284.82","Electricity","190502274","05/09/2018","Schools","Springdale Primary School","R2100"
"Wolverhampton City Council","http://opendatacommunities.org/id/metropolitan-district-council/wolverhampton","708251","Total Gas & Power Limited","173461040","56.25","Electricity","190502297","05/09/2018","Schools","Trinity Church of England Primary School","R2100"
"Wolverhampton City Council","http://opendatacommunities.org/id/metropolitan-district-council/wolverhampton","708251","Total Gas & Power Limited","175239256","82.25","Electricity","190502025","05/09/2018","Corporate Asset Management","Central Utilities to Recharge","R2100"
"Wolverhampton City Council","http://opendatacommunities.org/id/metropolitan-district-council/wolverhampton","708251","Total Gas & Power Limited","174401452","229.43","Electricity","190502028","05/09/2018","Corporate Asset Management","Central Utilities to Recharge","R2100"
"Wolverhampton City Council","http://opendatacommunities.org/id/metropolitan-district-council/wolverhampton","708251","Total Gas & Power Limited","175128728","23.51","Electricity","190502261","05/09/2018","Corporate Asset Management","Central Utilities to Recharge","R2100"
"Wolverhampton City Council","http://opendatacommunities.org/id/metropolitan-district-council/wolverhampton","708251","Total Gas & Power Limited","175128915","326.83","Electricity","190502266","05/09/2018","Corporate Asset Management","Central Utilities to Recharge","R2100"
"Wolverhampton City Council","http://opendatacommunities.org/id/metropolitan-district-council/wolverhampton","708251","Total Gas & Power Limited","176668640","104.02","Gas","190507689","19/09/2018","Corporate Asset Management","Central Utilities to Recharge","R2101"
"Wolverhampton City Council","http://opendatacommunities.org/id/metropolitan-district-council/wolverhampton","708251","Total Gas & Power Limited","157497356","-186.23","Electricity","190503894","12/09/2018","Corporate Asset Management","Central Utilities to Recharge","R2100"
"Wolverhampton City Council","http://opendatacommunities.org/id/metropolitan-district-council/wolverhampton","708251","Total Gas & Power Limited","167900530","826.04","Electricity","190503896","12/09/2018","Schools","West Park Primary School","R2100"
"Wolverhampton City Council","http://opendatacommunities.org/id/metropolitan-district-council/wolverhampton","708251","Total Gas & Power Limited","168007724","1,205.88","Electricity","190503903","12/09/2018","Corporate Asset Management","Central Utilities to Recharge","R2100"
"Wolverhampton City Council","http://opendatacommunities.org/id/metropolitan-district-council/wolverhampton","708251","Total Gas & Power Limited","168008110","334.99","Electricity","190503910","12/09/2018","Corporate Asset Management","Central Utilities to Recharge","R2100"
"Wolverhampton City Council","http://opendatacommunities.org/id/metropolitan-district-council/wolverhampton","708251","Total Gas & Power Limited","168008186","84.03","Electricity","190503912","12/09/2018","Corporate Asset Management","Central Utilities to Recharge","R2100"
"Wolverhampton City Council","http://opendatacommunities.org/id/metropolitan-district-council/wolverhampton","708251","Total Gas & Power Limited","169661277","96.51","Electricity","190503917","12/09/2018","Corporate Asset Management","Central Utilities to Recharge","R2100"
"Wolverhampton City Council","http://opendatacommunities.org/id/metropolitan-district-council/wolverhampton","708251","Total Gas & Power Limited","168008065","584.18","Electricity","190503906","12/09/2018","Corporate Asset Management","Central Utilities to Recharge","R2100"
"Wolverhampton City Council","http://opendatacommunities.org/id/metropolitan-district-council/wolverhampton","708251","Total Gas & Power Limited","168662433","429.52","Electricity","190503923","12/09/2018","Corporate Asset Management","Central Utilities to Recharge","R2100"
"Wolverhampton City Council","http://opendatacommunities.org/id/metropolitan-district-council/wolverhampton","708251","Total Gas & Power Limited","169905664","347.17","Electricity","190503926","12/09/2018","Corporate Asset Management","Central Utilities to Recharge","R2100"
"Wolverhampton City Council","http://opendatacommunities.org/id/metropolitan-district-council/wolverhampton","708251","Total Gas & Power Limited","175182749","-76.81","Electricity","190502144","05/09/2018","Corporate Asset Management","Central Utilities to Recharge","R2100"
"Wolverhampton City Council","http://opendatacommunities.org/id/metropolitan-district-council/wolverhampton","708251","Total Gas & Power Limited","175178206","724.77","Electricity","190502192","05/09/2018","Schools","West Park Primary School","R2100"
"Wolverhampton City Council","http://opendatacommunities.org/id/metropolitan-district-council/wolverhampton","708251","Total Gas & Power Limited","175129465","4,827.81","Electricity","190502291","05/09/2018","Schools","Colton Hills Community School","R2100"
"Wolverhampton City Council","http://opendatacommunities.org/id/metropolitan-district-council/wolverhampton","708251","Total Gas & Power Limited","176830439","223.78","Gas","190507764","19/09/2018","Corporate Asset Management","Central Utilities to Recharge","R2101"
"Wolverhampton City Council","http://opendatacommunities.org/id/metropolitan-district-council/wolverhampton","708251","Total Gas & Power Limited","176830252","3,892.06","Gas","190507784","19/09/2018","Corporate Asset Management","Central Utilities to Recharge","R2101"
"Wolverhampton City Council","http://opendatacommunities.org/id/metropolitan-district-council/wolverhampton","708251","Total Gas & Power Limited","173504941","19.08","Electricity","190508760","21/09/2018","Corporate Asset Management","Central Utilities to Recharge","R2100"
"Wolverhampton City Council","http://opendatacommunities.org/id/metropolitan-district-council/wolverhampton","708251","Total Gas & Power Limited","176276920","1,658.57","Electricity","190508711","21/09/2018","Corporate Asset Management","Central Utilities to Recharge","R2100"
"Wolverhampton City Council","http://opendatacommunities.org/id/metropolitan-district-council/wolverhampton","708251","Total Gas & Power Limited","176452831","2,045.39","Electricity","190508497","21/09/2018","Corporate Asset Management","Central Utilities to Recharge","R2100"
"Wolverhampton City Council","http://opendatacommunities.org/id/metropolitan-district-council/wolverhampton","708251","Total Gas & Power Limited","176453062","34.42","Electricity","190508521","21/09/2018","Corporate Asset Management","Central Utilities to Recharge","R2100"
"Wolverhampton City Council","http://opendatacommunities.org/id/metropolitan-district-council/wolverhampton","708251","Total Gas & Power Limited","176453370","32.31","Electricity","190508527","21/09/2018","Corporate Asset Management","Central Utilities to Recharge","R2100"
"Wolverhampton City Council","http://opendatacommunities.org/id/metropolitan-district-council/wolverhampton","708251","Total Gas & Power Limited","176364765","35.90","Electricity","190508602","21/09/2018","Corporate Asset Management","Central Utilities to Recharge","R2100"
"Wolverhampton City Council","http://opendatacommunities.org/id/metropolitan-district-council/wolverhampton","708251","Total Gas & Power Limited","176364040","31.10","Electricity","190508591","21/09/2018","Corporate Asset Management","Central Utilities to Recharge","R2100"
"Wolverhampton City Council","http://opendatacommunities.org/id/metropolitan-district-council/wolverhampton","708251","Total Gas & Power Limited","176364138","30.63","Electricity","190508593","21/09/2018","Corporate Asset Management","Central Utilities to Recharge","R2100"
"Wolverhampton City Council","http://opendatacommunities.org/id/metropolitan-district-council/wolverhampton","708251","Total Gas & Power Limited","176668520","48.74","Gas","190507701","19/09/2018","Schools","Merridale Primary School","R2101"
"Wolverhampton City Council","http://opendatacommunities.org/id/metropolitan-district-council/wolverhampton","708251","Total Gas & Power Limited","176830010","366.03","Gas","190507807","19/09/2018","Schools","Dovecotes Primary School","R2101"
"Wolverhampton City Council","http://opendatacommunities.org/id/metropolitan-district-council/wolverhampton","708251","Total Gas & Power Limited","176668409","48.20","Gas","190507713","19/09/2018","Housing Revenue Account","Amounts to be Settled with Wolverhampton Homes","R2101"
"Wolverhampton City Council","http://opendatacommunities.org/id/metropolitan-district-council/wolverhampton","708251","Total Gas & Power Limited","176669267","47.84","Gas","190507622","19/09/2018","Corporate Asset Management","Central Utilities to Recharge","R2101"
"Wolverhampton City Council","http://opendatacommunities.org/id/metropolitan-district-council/wolverhampton","708251","Total Gas & Power Limited","176668937","143.80","Gas","190507653","19/09/2018","Corporate Asset Management","Central Utilities to Recharge","R2101"
"Wolverhampton City Council","http://opendatacommunities.org/id/metropolitan-district-council/wolverhampton","708251","Total Gas & Power Limited","176668783","41.41","Gas","190507668","19/09/2018","Corporate Asset Management","Central Utilities to Recharge","R2101"
"Wolverhampton City Council","http://opendatacommunities.org/id/metropolitan-district-council/wolverhampton","708251","Total Gas & Power Limited","176668706","49.29","Gas","190507682","19/09/2018","Corporate Asset Management","Central Utilities to Recharge","R2101"
"Wolverhampton City Council","http://opendatacommunities.org/id/metropolitan-district-council/wolverhampton","708259","Totally Delicious Vending Limited","242","546.00","Equipment - R & M","130225937","05/09/2018","Local Economy","Global Budgets","R4003"
"Wolverhampton City Council","http://opendatacommunities.org/id/metropolitan-district-council/wolverhampton","708260","Touch Dry Cleaning Services","2374","400.00","Fixtures and Fittings - R&M","130227738","07/09/2018","Bereavement Services","Cemeteries","R2502"
"Wolverhampton City Council","http://opendatacommunities.org/id/metropolitan-district-council/wolverhampton","708301","Treasured Memories Limited","21435","50.95","Materials","130226856","07/09/2018","Bereavement Services","Crematorium","R4007"
"Wolverhampton City Council","http://opendatacommunities.org/id/metropolitan-district-council/wolverhampton","708301","Treasured Memories Limited","21511","101.90","Materials","130229104","21/09/2018","Bereavement Services","Crematorium","R4007"
"Wolverhampton City Council","http://opendatacommunities.org/id/metropolitan-district-council/wolverhampton","708348","Truvox International Limited","258456","22.52","Equipment - Purchase","130226169","12/09/2018","Cleaning","Cleaning of Buildings - General","R4000"
"Wolverhampton City Council","http://opendatacommunities.org/id/metropolitan-district-council/wolverhampton","708356","Tudor Environmental","231208","223.00","Materials","130229105","26/09/2018","Environmental Maintenance","Ground Maintenance East","R4007"
"Wolverhampton City Council","http://opendatacommunities.org/id/metropolitan-district-council/wolverhampton","708356","Tudor Environmental","231348","1,290.71","Materials","130229306","26/09/2018","Environmental Maintenance","Ground Maintenance East","R4007"
"Wolverhampton City Council","http://opendatacommunities.org/id/metropolitan-district-council/wolverhampton","708358","Tunstall Healthcare (UK) Limited","3IN/10321825","2,625.00","Equipment - Purchase","130224321","19/09/2018","Independent Living Service","Telecare","R4000"
"Wolverhampton City Council","http://opendatacommunities.org/id/metropolitan-district-council/wolverhampton","708368","Twinkle Stars Day Nursery","TFT Autumn 2018 Inst 1","1,216.73","TPP - Private Nursery Education Funding","190508160","19/09/2018","Early Years","Early Years Entitlement Funding for Disadvantaged 2 Year Olds","R5035"
"Wolverhampton City Council","http://opendatacommunities.org/id/metropolitan-district-council/wolverhampton","708368","Twinkle Stars Day Nursery","NEF Autumn 2018 INST 1","10,592.65","TPP - Private Nursery Education Funding","190508148","19/09/2018","Early Years","Early Years Universal Entitlement for 3 and 4 Year Olds","R5035"
"Wolverhampton City Council","http://opendatacommunities.org/id/metropolitan-district-council/wolverhampton","708373","Tyco Integrated Fire & Security","TL039154","1,550.00","Equipment - R & M","130226020","07/09/2018","Operation & Maintenance of Existing Network","UTC Dudley","R4003"
"Wolverhampton City Council","http://opendatacommunities.org/id/metropolitan-district-council/wolverhampton","708373","Tyco Integrated Fire & Security","TL039152","1,550.00","Equipment - R & M","130225741","07/09/2018","Operation & Maintenance of Existing Network","UTC Dudley","R4003"
"Wolverhampton City Council","http://opendatacommunities.org/id/metropolitan-district-council/wolverhampton","708373","Tyco Integrated Fire & Security","TL039151","13,277.13","Equipment - R & M","130225740","07/09/2018","Operation & Maintenance of Existing Network","UTC Wolverhampton","R4003"
"Wolverhampton City Council","http://opendatacommunities.org/id/metropolitan-district-council/wolverhampton","708373","Tyco Integrated Fire & Security","TL039150","1,550.00","Equipment - R & M","130226018","07/09/2018","Operation & Maintenance of Existing Network","UTC Dudley","R4003"
"Wolverhampton City Council","http://opendatacommunities.org/id/metropolitan-district-council/wolverhampton","708373","Tyco Integrated Fire & Security","TL039149","13,277.13","Equipment - R & M","130226017","07/09/2018","Operation & Maintenance of Existing Network","UTC Wolverhampton","R4003"
"Wolverhampton City Council","http://opendatacommunities.org/id/metropolitan-district-council/wolverhampton","708373","Tyco Integrated Fire & Security","TL039153","13,277.13","Equipment - R & M","130226019","07/09/2018","Operation & Maintenance of Existing Network","UTC Wolverhampton","R4003"
"Wolverhampton City Council","http://opendatacommunities.org/id/metropolitan-district-council/wolverhampton","708374","Tyddyn Hen Limited","204003","30.10","Provisions (Not for resale)","130227361","26/09/2018","School Planning & Resources","Towers Outdoor Education Centre","R4101"
"Wolverhampton City Council","http://opendatacommunities.org/id/metropolitan-district-council/wolverhampton","708418","Univar Limited","91563726","292.11","Materials","130228915","21/09/2018","Leisure Services","Bert Williams Leisure Centre","R4007"
"Wolverhampton City Council","http://opendatacommunities.org/id/metropolitan-district-council/wolverhampton","708418","Univar Limited","91576601","355.71","Materials","130225880","05/09/2018","Leisure Services","Bert Williams Leisure Centre","R4007"
"Wolverhampton City Council","http://opendatacommunities.org/id/metropolitan-district-council/wolverhampton","708418","Univar Limited","91576579","-11.00","Materials","130225879","12/09/2018","Leisure Services","Central Baths","R4007"
"Wolverhampton City Council","http://opendatacommunities.org/id/metropolitan-district-council/wolverhampton","708418","Univar Limited","91579909","82.56","Materials","130226313","12/09/2018","Leisure Services","Bert Williams Leisure Centre","R4007"
"Wolverhampton City Council","http://opendatacommunities.org/id/metropolitan-district-council/wolverhampton","708418","Univar Limited","91545650","292.11","Materials","130229107","21/09/2018","Leisure Services","Bert Williams Leisure Centre","R4007"
"Wolverhampton City Council","http://opendatacommunities.org/id/metropolitan-district-council/wolverhampton","708418","Univar Limited","91576602","136.00","Materials","130225881","05/09/2018","Leisure Services","Central Baths","R4007"
"Wolverhampton City Council","http://opendatacommunities.org/id/metropolitan-district-council/wolverhampton","708422","University Of Birmingham","AEBF200/24709","37,386.00","Services - Consultants","130228480","14/09/2018","Local Economy","Global Budgets","R4404"
"Wolverhampton City Council","http://opendatacommunities.org/id/metropolitan-district-council/wolverhampton","708436","Univ. Of Wolverhampton (Little Scholars)","45068395","1,440.00","TPP - Child Care provided for client","130225612","05/09/2018","Adult Education","Discretionary Fund","R5034"
"Wolverhampton City Council","http://opendatacommunities.org/id/metropolitan-district-council/wolverhampton","708436","Univ. Of Wolverhampton (Little Scholars)","NEF Autumn 2018 INST 1","16,633.50","TPP - Private Nursery Education Funding","190508148","19/09/2018","Early Years","Early Years Universal Entitlement for 3 and 4 Year Olds","R5035"
"Wolverhampton City Council","http://opendatacommunities.org/id/metropolitan-district-council/wolverhampton","708436","Univ. Of Wolverhampton (Little Scholars)","TFT Autumn 2018 Inst 1","10,752.48","TPP - Private Nursery Education Funding","190508160","19/09/2018","Early Years","Early Years Entitlement Funding for Disadvantaged 2 Year Olds","R5035"
"Wolverhampton City Council","http://opendatacommunities.org/id/metropolitan-district-council/wolverhampton","708448","AECOM Infrastructure & Environment UK Ltd","28358682","16,077.27","Services - Professional Fees","130226314","12/09/2018","Transportation","Strategy & Development","R4400"
"Wolverhampton City Council","http://opendatacommunities.org/id/metropolitan-district-council/wolverhampton","708448","AECOM Infrastructure & Environment UK Ltd","28359961","2,705.66","Construction and Conversion","130226860","19/09/2018","-","Safety Programme","C1100"
"Wolverhampton City Council","http://opendatacommunities.org/id/metropolitan-district-council/wolverhampton","708448","AECOM Infrastructure & Environment UK Ltd","28359974","5,810.57","Construction and Conversion","130226865","19/09/2018","-","Safety Programme","C1100"
"Wolverhampton City Council","http://opendatacommunities.org/id/metropolitan-district-council/wolverhampton","708448","AECOM Infrastructure & Environment UK Ltd","28357335","2,466.26","Construction and Conversion","130224818","05/09/2018","-","GF - Accessing Growth Fund","C1100"
"Wolverhampton City Council","http://opendatacommunities.org/id/metropolitan-district-council/wolverhampton","708448","AECOM Infrastructure & Environment UK Ltd","28359980","1,230.58","Services - Professional Fees","130226866","19/09/2018","City Development","Bilston Public Open Space (ERDF)","R4400"
"Wolverhampton City Council","http://opendatacommunities.org/id/metropolitan-district-council/wolverhampton","708448","AECOM Infrastructure & Environment UK Ltd","28359964","6,916.50","Construction and Conversion","130226862","19/09/2018","-","GF - Accessing Growth Fund","C1100"
"Wolverhampton City Council","http://opendatacommunities.org/id/metropolitan-district-council/wolverhampton","708448","AECOM Infrastructure & Environment UK Ltd","28358957","6,956.41","Construction and Conversion","130226462","14/09/2018","-","GF - Accessing Growth Fund","C1100"
"Wolverhampton City Council","http://opendatacommunities.org/id/metropolitan-district-council/wolverhampton","708448","AECOM Infrastructure & Environment UK Ltd","28359970","3,978.24","Construction and Conversion","130226864","19/09/2018","-","Wolverhampton Interchange","C1100"
"Wolverhampton City Council","http://opendatacommunities.org/id/metropolitan-district-council/wolverhampton","708448","AECOM Infrastructure & Environment UK Ltd","28358205","309.52","Construction and Conversion","130225742","07/09/2018","-","Integrated Transport","C1100"
"Wolverhampton City Council","http://opendatacommunities.org/id/metropolitan-district-council/wolverhampton","708448","AECOM Infrastructure & Environment UK Ltd","28358259","2,758.58","Construction and Conversion","130225882","12/09/2018","-","Integrated Transport","C1100"
"Wolverhampton City Council","http://opendatacommunities.org/id/metropolitan-district-council/wolverhampton","708448","AECOM Infrastructure & Environment UK Ltd","28359962","3,740.33","Services - Professional Fees","130226861","19/09/2018","Transportation","Section 278 and 38 Agreements","R4400"
"Wolverhampton City Council","http://opendatacommunities.org/id/metropolitan-district-council/wolverhampton","708448","AECOM Infrastructure & Environment UK Ltd","28359956","5,588.51","Construction and Conversion","130226857","19/09/2018","-","Safety Programme","C1100"
"Wolverhampton City Council","http://opendatacommunities.org/id/metropolitan-district-council/wolverhampton","708448","AECOM Infrastructure & Environment UK Ltd","28359957","6,840.96","Construction and Conversion","130226858","26/09/2018","-","GF - Accessing Growth Fund","C1100"
"Wolverhampton City Council","http://opendatacommunities.org/id/metropolitan-district-council/wolverhampton","708448","AECOM Infrastructure & Environment UK Ltd","28359959","4,950.53","Construction and Conversion","130226859","19/09/2018","-","Safety Programme","C1100"
"Wolverhampton City Council","http://opendatacommunities.org/id/metropolitan-district-council/wolverhampton","708448","AECOM Infrastructure & Environment UK Ltd","28359981","11,298.63","Construction and Conversion","130226867","19/09/2018","-","Safety Programme","C1100"
"Wolverhampton City Council","http://opendatacommunities.org/id/metropolitan-district-council/wolverhampton","708448","AECOM Infrastructure & Environment UK Ltd","28359966","2,200.32","Construction and Conversion","130226863","19/09/2018","-","GF - Accessing Growth Fund","C1100"
"Wolverhampton City Council","http://opendatacommunities.org/id/metropolitan-district-council/wolverhampton","708449","Ustigate Limited","0000005489","1,650.00","R&M - Departmental planned (external)","130226868","19/09/2018","Environmental Maintenance","Fountain Maintenance","R2001"
"Wolverhampton City Council","http://opendatacommunities.org/id/metropolitan-district-council/wolverhampton","708453","V L Test Systems Limited","18092110","1,140.00","Equipment - R & M","190508091","19/09/2018","Fleet Services","Fleet Management","R4003"
"Wolverhampton City Council","http://opendatacommunities.org/id/metropolitan-district-council/wolverhampton","708467","Valuation Office Agency","25000037722018","1,013.40","Services - Professional Fees","130226021","12/09/2018","Estates and Valuations","Other Premises ; Other","R4400"
"Wolverhampton City Council","http://opendatacommunities.org/id/metropolitan-district-council/wolverhampton","708467","Valuation Office Agency","25000032852018","167.42","Services - Professional Fees","130224026","19/09/2018","Estates and Valuations","Estates and Valuations Team","R4400"
"Wolverhampton City Council","http://opendatacommunities.org/id/metropolitan-district-council/wolverhampton","708467","Valuation Office Agency","25000043662018","302.40","Services - Professional Fees","130227362","26/09/2018","School Planning & Resources","Other Support Services","R4400"
"Wolverhampton City Council","http://opendatacommunities.org/id/metropolitan-district-council/wolverhampton","708467","Valuation Office Agency","25000038612018","3,074.20","Services - Consultants","130226569","19/09/2018","Planning","Planning","R4404"
"Wolverhampton City Council","http://opendatacommunities.org/id/metropolitan-district-council/wolverhampton","708467","Valuation Office Agency","25000085592017","2,740.80","Services - Consultants","130228917","26/09/2018","Planning","Planning","R4404"
"Wolverhampton City Council","http://opendatacommunities.org/id/metropolitan-district-council/wolverhampton","708476","Vehicle Weighing Solutions Limited","INV21487","5.00","Services - Professional Fees","190504325","12/09/2018","Fleet Services","Fleet Management","R4400"
"Wolverhampton City Council","http://opendatacommunities.org/id/metropolitan-district-council/wolverhampton","708476","Vehicle Weighing Solutions Limited","INV21487","22.32","Services - Professional Fees","190504325","12/09/2018","Fleet Services","Fleet Management","R4400"
"Wolverhampton City Council","http://opendatacommunities.org/id/metropolitan-district-council/wolverhampton","708476","Vehicle Weighing Solutions Limited","INV21487","50.00","Services - Professional Fees","190504325","12/09/2018","Fleet Services","Fleet Management","R4400"
"Wolverhampton City Council","http://opendatacommunities.org/id/metropolitan-district-council/wolverhampton","708476","Vehicle Weighing Solutions Limited","INV21487","39.60","Services - Professional Fees","190504325","12/09/2018","Fleet Services","Fleet Management","R4400"
"Wolverhampton City Council","http://opendatacommunities.org/id/metropolitan-district-council/wolverhampton","708476","Vehicle Weighing Solutions Limited","INV21487","192.00","Services - Professional Fees","190504325","12/09/2018","Fleet Services","Fleet Management","R4400"
"Wolverhampton City Council","http://opendatacommunities.org/id/metropolitan-district-council/wolverhampton","708476","Vehicle Weighing Solutions Limited","INV21487","590.62","Services - Professional Fees","190504325","12/09/2018","Fleet Services","Fleet Management","R4400"
"Wolverhampton City Council","http://opendatacommunities.org/id/metropolitan-district-council/wolverhampton","708481","Venue Catering Partner Limited","25055","671.96","Catering","130223343","05/09/2018","Skills","IMPACT","R4100"
"Wolverhampton City Council","http://opendatacommunities.org/id/metropolitan-district-council/wolverhampton","708481","Venue Catering Partner Limited","30520","507.19","Room Hire","130223347","19/09/2018","Public Service Reform","Centralised Training","R2201"
"Wolverhampton City Council","http://opendatacommunities.org/id/metropolitan-district-council/wolverhampton","708484","Verifone Services UK&Ireland Limited","7500951656","19.99","Equipment - Purchase","130226693","12/09/2018","Catering","Civic Centre Catering","R4000"
"Wolverhampton City Council","http://opendatacommunities.org/id/metropolitan-district-council/wolverhampton","708484","Verifone Services UK&Ireland Limited","7500940142","27.24","Equipment - Hire","130223773","05/09/2018","Leisure Services","Bert Williams Leisure Centre Caf�","R4001"
"Wolverhampton City Council","http://opendatacommunities.org/id/metropolitan-district-council/wolverhampton","708484","Verifone Services UK&Ireland Limited","7500953028","27.24","Equipment - Hire","130226694","12/09/2018","Leisure Services","Bert Williams Leisure Centre Caf�","R4001"
"Wolverhampton City Council","http://opendatacommunities.org/id/metropolitan-district-council/wolverhampton","708513","Vodafone Corporate Limited","000087388476","29.43","Comms - Mobile Telephones","130216530","05/09/2018","ICTS","Strategic ICTS (ICT Service Budget)","R4507"
"Wolverhampton City Council","http://opendatacommunities.org/id/metropolitan-district-council/wolverhampton","708542","W.V.Howe Limited","242237","164.84","Equipment - Catering","130229308","26/09/2018","Catering","Education Catering - General Overheads","R4010"
"Wolverhampton City Council","http://opendatacommunities.org/id/metropolitan-district-council/wolverhampton","708542","W.V.Howe Limited","241684","15.38","Equipment - Catering","130229115","26/09/2018","Catering","Education Catering - General Overheads","R4010"
"Wolverhampton City Council","http://opendatacommunities.org/id/metropolitan-district-council/wolverhampton","708542","W.V.Howe Limited","241576","265.74","Equipment - Catering","130229112","26/09/2018","Catering","Education Catering - General Overheads","R4010"
"Wolverhampton City Council","http://opendatacommunities.org/id/metropolitan-district-council/wolverhampton","708542","W.V.Howe Limited","241577","745.40","Equipment - Catering","130229113","26/09/2018","Catering","Education Catering - General Overheads","R4010"
"Wolverhampton City Council","http://opendatacommunities.org/id/metropolitan-district-council/wolverhampton","708542","W.V.Howe Limited","239843","220.16","Equipment - Catering","130225461","19/09/2018","Catering","Education Catering - General Overheads","R4010"
"Wolverhampton City Council","http://opendatacommunities.org/id/metropolitan-district-council/wolverhampton","708542","W.V.Howe Limited","239876","2,114.00","Equipment - Catering","130225743","12/09/2018","Catering","Education Catering - General Overheads","R4010"
"Wolverhampton City Council","http://opendatacommunities.org/id/metropolitan-district-council/wolverhampton","708542","W.V.Howe Limited","241579","280.00","Equipment - Catering","130229114","26/09/2018","Catering","Education Catering - General Overheads","R4010"
"Wolverhampton City Council","http://opendatacommunities.org/id/metropolitan-district-council/wolverhampton","708542","W.V.Howe Limited","242238","13.68","Equipment - Catering","130229309","26/09/2018","Catering","Education Catering - General Overheads","R4010"
"Wolverhampton City Council","http://opendatacommunities.org/id/metropolitan-district-council/wolverhampton","708556","Walsall Metropolitan Borough Council","696143","967.50","Equipment - Purchase","130227083","05/09/2018","Transportation","Advisory Road Markings and Disabled Bays","R4000"
"Wolverhampton City Council","http://opendatacommunities.org/id/metropolitan-district-council/wolverhampton","708581","Wates Construction Limited","111392","64,158.00","Construction and Conversion","130226870","05/09/2018","-","Roof Refurbishment Programme","C1100"
"Wolverhampton City Council","http://opendatacommunities.org/id/metropolitan-district-council/wolverhampton","708581","Wates Construction Limited","111868","29,067.00","Construction and Conversion","130228594","17/09/2018","-","Fire Safety Improvements","C1100"
"Wolverhampton City Council","http://opendatacommunities.org/id/metropolitan-district-council/wolverhampton","708581","Wates Construction Limited","110773","90,486.00","Construction and Conversion","130228044","12/09/2018","-","Roof Refurbishment Programme","C1100"
"Wolverhampton City Council","http://opendatacommunities.org/id/metropolitan-district-council/wolverhampton","708581","Wates Construction Limited","111408","-296,416.00","Construction and Conversion","130227086","05/09/2018","-","Roof Refurbishment Programme","C1100"
"Wolverhampton City Council","http://opendatacommunities.org/id/metropolitan-district-council/wolverhampton","708581","Wates Construction Limited","111409","64,158.00","Construction and Conversion","130226697","05/09/2018","-","Roof Refurbishment Programme","C1100"
"Wolverhampton City Council","http://opendatacommunities.org/id/metropolitan-district-council/wolverhampton","708581","Wates Construction Limited","111858","399,781.00","Construction and Conversion","130228345","17/09/2018","-","Roof Refurbishment Programme","C1100"
"Wolverhampton City Council","http://opendatacommunities.org/id/metropolitan-district-council/wolverhampton","708581","Wates Construction Limited","111407","-64,158.00","Construction and Conversion","130227085","05/09/2018","-","Roof Refurbishment Programme","C1100"
"Wolverhampton City Council","http://opendatacommunities.org/id/metropolitan-district-council/wolverhampton","708581","Wates Construction Limited","111410","296,416.00","Construction and Conversion","130226698","05/09/2018","-","Roof Refurbishment Programme","C1100"
"Wolverhampton City Council","http://opendatacommunities.org/id/metropolitan-district-council/wolverhampton","708581","Wates Construction Limited","111818","320,000.00","Construction and Conversion","130228717","19/09/2018","-","Decent Homes - Stock Improvements","C1100"
"Wolverhampton City Council","http://opendatacommunities.org/id/metropolitan-district-council/wolverhampton","708581","Wates Construction Limited","110793","-90,486.00","Construction and Conversion","130227084","05/09/2018","-","Roof Refurbishment Programme","C1100"
"Wolverhampton City Council","http://opendatacommunities.org/id/metropolitan-district-council/wolverhampton","708581","Wates Construction Limited","111391","296,416.00","Construction and Conversion","130226869","05/09/2018","-","Roof Refurbishment Programme","C1100"
"Wolverhampton City Council","http://opendatacommunities.org/id/metropolitan-district-council/wolverhampton","708581","Wates Construction Limited","111867","88,877.00","Construction and Conversion","130228718","19/09/2018","-","Fire Safety Improvements","C1100"
"Wolverhampton City Council","http://opendatacommunities.org/id/metropolitan-district-council/wolverhampton","708581","Wates Construction Limited","111859","71,197.00","Construction and Conversion","130228346","14/09/2018","-","Roof Refurbishment Programme","C1100"
"Wolverhampton City Council","http://opendatacommunities.org/id/metropolitan-district-council/wolverhampton","708601","Webgibb Welding Limited","C6875","685.00","Equipment - R & M","130227863","14/09/2018","Leisure Services","Aldersley Leisure Village","R4003"
"Wolverhampton City Council","http://opendatacommunities.org/id/metropolitan-district-council/wolverhampton","708608","Wednesfield High S E A","SEN Mainstream Top Ups Summer Term 18 - Wednesfield High","17,222.33","Grant Payments","190501529","05/09/2018","Central Education","High Needs Top Up Academies","R4700"
"Wolverhampton City Council","http://opendatacommunities.org/id/metropolitan-district-council/wolverhampton","708616","Weightmans Llp","My ref: EL9619/ER3 Your ref: Z1001/70946","151.95","Insurance - General","190505077","14/09/2018","Audit Services","Legal Liability","R4962"
"Wolverhampton City Council","http://opendatacommunities.org/id/metropolitan-district-council/wolverhampton","708649","West Midlands Employers","10291","2,475.00","Training Expenses","130227239","05/09/2018","Public Service Reform","Centralised Training","R1650"
"Wolverhampton City Council","http://opendatacommunities.org/id/metropolitan-district-council/wolverhampton","708649","West Midlands Employers","WOL_011547","220.00","Staff Advertising Costs","130227864","12/09/2018","The Hub","Central Advertising","R1700"
"Wolverhampton City Council","http://opendatacommunities.org/id/metropolitan-district-council/wolverhampton","708649","West Midlands Employers","WOL_011700","220.00","Staff Advertising Costs","130228189","14/09/2018","The Hub","Central Advertising","R1700"
"Wolverhampton City Council","http://opendatacommunities.org/id/metropolitan-district-council/wolverhampton","708650","West Midlands Fire Service","600038858","12,648.00","TPP - Social Care Support Services","130226377","12/09/2018","Independent Living Service","Telecare","R5501"
"Wolverhampton City Council","http://opendatacommunities.org/id/metropolitan-district-council/wolverhampton","708675","Whale Tankers Limited","M60746","15.48","Equipment - Purchase","190504328","12/09/2018","Fleet Services","Fleet Management","R4000"
"Wolverhampton City Council","http://opendatacommunities.org/id/metropolitan-district-council/wolverhampton","708675","Whale Tankers Limited","M61028","6.68","Equipment - Purchase","190504329","12/09/2018","Fleet Services","Fleet Management","R4000"
"Wolverhampton City Council","http://opendatacommunities.org/id/metropolitan-district-council/wolverhampton","708675","Whale Tankers Limited","M61024","14.66","Equipment - Purchase","190505071","14/09/2018","Fleet Services","Fleet Management","R4000"
"Wolverhampton City Council","http://opendatacommunities.org/id/metropolitan-district-council/wolverhampton","708700","Wildlife Trust For B�Ham & Black Cty","967","1,500.00","Services - Fees and Charges","130229310","26/09/2018","Environmental Maintenance","Parks - Ranger Service","R4401"
"Wolverhampton City Council","http://opendatacommunities.org/id/metropolitan-district-council/wolverhampton","708700","Wildlife Trust For B�Ham & Black Cty","955","2,050.00","Construction and Conversion","130227087","05/09/2018","-","GF - Blue Network","C1100"
"Wolverhampton City Council","http://opendatacommunities.org/id/metropolitan-district-council/wolverhampton","708701","Wildside Activity Centre","18/2199","123.50","Training Expenses","130227363","26/09/2018","Audit Services","Health & Safety","R1650"
"Wolverhampton City Council","http://opendatacommunities.org/id/metropolitan-district-council/wolverhampton","708701","Wildside Activity Centre","18/2200","107.50","Training Expenses","130227364","26/09/2018","Audit Services","Health & Safety","R1650"
"Wolverhampton City Council","http://opendatacommunities.org/id/metropolitan-district-council/wolverhampton","708707","William Gough & Sons Limited","20677","25,912.00","R&M - Departmental planned (external)","130227685","12/09/2018","Adult Education","Foyer Building","R2001"
"Wolverhampton City Council","http://opendatacommunities.org/id/metropolitan-district-council/wolverhampton","708707","William Gough & Sons Limited","20677","1,732.00","R&M - Departmental planned (external)","130227685","12/09/2018","Adult Education","Old Hall Street Main","R2001"
"Wolverhampton City Council","http://opendatacommunities.org/id/metropolitan-district-council/wolverhampton","708707","William Gough & Sons Limited","20678","12,453.00","R&M - Departmental planned (external)","130227686","26/09/2018","Adult Education","Old Hall Street Main","R2001"
"Wolverhampton City Council","http://opendatacommunities.org/id/metropolitan-district-council/wolverhampton","708708","William Gough Limited","85146","448.42","R&M - Departmental planned (external)","130225616","05/09/2018","Maintenance Programme","Centralised R&M","R2001"
"Wolverhampton City Council","http://opendatacommunities.org/id/metropolitan-district-council/wolverhampton","708708","William Gough Limited","85144","1,273.30","R&M - Departmental planned (external)","130225614","05/09/2018","Maintenance Programme","Centralised R&M","R2001"
"Wolverhampton City Council","http://opendatacommunities.org/id/metropolitan-district-council/wolverhampton","708708","William Gough Limited","85158","140.76","R&M - Departmental planned (external)","130226023","12/09/2018","Maintenance Programme","Centralised R&M","R2001"
"Wolverhampton City Council","http://opendatacommunities.org/id/metropolitan-district-council/wolverhampton","708708","William Gough Limited","85156","2,611.19","R&M - Departmental planned (external)","130226175","12/09/2018","Maintenance Programme","Centralised R&M","R2001"
"Wolverhampton City Council","http://opendatacommunities.org/id/metropolitan-district-council/wolverhampton","708708","William Gough Limited","85175","5,252.32","Construction and Conversion","130226465","12/09/2018","-","GF - Cricket provision","C1100"
"Wolverhampton City Council","http://opendatacommunities.org/id/metropolitan-district-council/wolverhampton","708708","William Gough Limited","85130","165.13","R&M - Departmental planned (external)","130225355","05/09/2018","Maintenance Programme","Centralised R&M","R2001"
"Wolverhampton City Council","http://opendatacommunities.org/id/metropolitan-district-council/wolverhampton","708708","William Gough Limited","85142","192.45","R&M - Departmental planned (external)","130225468","05/09/2018","Maintenance Programme","Centralised R&M","R2001"
"Wolverhampton City Council","http://opendatacommunities.org/id/metropolitan-district-council/wolverhampton","708708","William Gough Limited","85127","88.69","R&M - Departmental planned (external)","130225206","05/09/2018","Maintenance Programme","Centralised R&M","R2001"
"Wolverhampton City Council","http://opendatacommunities.org/id/metropolitan-district-council/wolverhampton","708708","William Gough Limited","85159","66.84","R&M - Departmental planned (external)","130226024","12/09/2018","Maintenance Programme","Centralised R&M","R2001"
"Wolverhampton City Council","http://opendatacommunities.org/id/metropolitan-district-council/wolverhampton","708708","William Gough Limited","85236","161.55","R&M - Departmental planned (external)","130228722","26/09/2018","Safeguarding","Court of Protection, Funerals and Protection of Property","R2001"
"Wolverhampton City Council","http://opendatacommunities.org/id/metropolitan-district-council/wolverhampton","708708","William Gough Limited","84884","2,759.31","R&M - Departmental planned (external)","130221889","26/09/2018","Maintenance Programme","Centralised R&M","R2001"
"Wolverhampton City Council","http://opendatacommunities.org/id/metropolitan-district-council/wolverhampton","708708","William Gough Limited","85178","49.42","R&M - Departmental planned (external)","130226468","19/09/2018","Maintenance Programme","Centralised R&M","R2001"
"Wolverhampton City Council","http://opendatacommunities.org/id/metropolitan-district-council/wolverhampton","708708","William Gough Limited","85186","61.09","R&M - Departmental planned (external)","130226475","19/09/2018","Facilities Management","Magistrates","R2001"
"Wolverhampton City Council","http://opendatacommunities.org/id/metropolitan-district-council/wolverhampton","708708","William Gough Limited","85182","231.69","R&M - Departmental planned (external)","130226471","19/09/2018","Maintenance Programme","Centralised R&M","R2001"
"Wolverhampton City Council","http://opendatacommunities.org/id/metropolitan-district-council/wolverhampton","708708","William Gough Limited","85239","40.00","R&M - Departmental planned (external)","130227088","26/09/2018","Maintenance Programme","Centralised R&M","R2001"
"Wolverhampton City Council","http://opendatacommunities.org/id/metropolitan-district-council/wolverhampton","708708","William Gough Limited","85224","640.39","R&M - Departmental planned (external)","130226877","19/09/2018","Facilities Management","Caretakers Community Centre","R2001"
"Wolverhampton City Council","http://opendatacommunities.org/id/metropolitan-district-council/wolverhampton","708708","William Gough Limited","85193","42.13","R&M - Departmental planned (external)","130226482","19/09/2018","Maintenance Programme","Centralised R&M","R2001"
"Wolverhampton City Council","http://opendatacommunities.org/id/metropolitan-district-council/wolverhampton","708708","William Gough Limited","85184","40.00","R&M - Departmental planned (external)","130226473","19/09/2018","Maintenance Programme","Centralised R&M","R2001"
"Wolverhampton City Council","http://opendatacommunities.org/id/metropolitan-district-council/wolverhampton","708708","William Gough Limited","85176","27,500.00","R&M - Departmental planned (external)","130226466","19/09/2018","Schools","Pupil Referral Units - Orchard Centre","R2001"
"Wolverhampton City Council","http://opendatacommunities.org/id/metropolitan-district-council/wolverhampton","708708","William Gough Limited","85216","128.75","R&M - Departmental planned (external)","130226706","19/09/2018","Markets","Bilston Market and Licensed Operations","R2001"
"Wolverhampton City Council","http://opendatacommunities.org/id/metropolitan-district-council/wolverhampton","708708","William Gough Limited","85192","158.91","R&M - Departmental planned (external)","130226481","19/09/2018","Maintenance Programme","Centralised R&M","R2001"
"Wolverhampton City Council","http://opendatacommunities.org/id/metropolitan-district-council/wolverhampton","708708","William Gough Limited","85207","71.27","R&M - Departmental planned (external)","130226699","19/09/2018","Maintenance Programme","Centralised R&M","R2001"
"Wolverhampton City Council","http://opendatacommunities.org/id/metropolitan-district-council/wolverhampton","708708","William Gough Limited","85128","363.40","R&M - Departmental planned (external)","130225354","05/09/2018","Estates and Valuations","Industrial Premises ; NEC,Monmore Road","R2001"
"Wolverhampton City Council","http://opendatacommunities.org/id/metropolitan-district-council/wolverhampton","708708","William Gough Limited","85123","81.83","R&M - Departmental planned (external)","130225203","05/09/2018","Maintenance Programme","Centralised R&M","R2001"
"Wolverhampton City Council","http://opendatacommunities.org/id/metropolitan-district-council/wolverhampton","708708","William Gough Limited","85165","100.53","R&M - Departmental planned (external)","130226026","12/09/2018","Facilities Management","Magistrates","R2001"
"Wolverhampton City Council","http://opendatacommunities.org/id/metropolitan-district-council/wolverhampton","708708","William Gough Limited","84658","423.72","R&M - Departmental planned (external)","130219284","05/09/2018","Markets","Wolverhampton Indoor and Open Market","R2001"
"Wolverhampton City Council","http://opendatacommunities.org/id/metropolitan-district-council/wolverhampton","708708","William Gough Limited","85167","4,303.96","R&M - Departmental planned (external)","130226464","12/09/2018","Maintenance Programme","Centralised R&M","R2001"
"Wolverhampton City Council","http://opendatacommunities.org/id/metropolitan-district-council/wolverhampton","708708","William Gough Limited","C2416","-23.93","R&M - Departmental planned (external)","130225470","05/09/2018","Maintenance Programme","Centralised R&M","R2001"
"Wolverhampton City Council","http://opendatacommunities.org/id/metropolitan-district-council/wolverhampton","708708","William Gough Limited","85154","2,474.51","R&M - Departmental planned (external)","130226173","12/09/2018","Maintenance Programme","Centralised R&M","R2001"
"Wolverhampton City Council","http://opendatacommunities.org/id/metropolitan-district-council/wolverhampton","708708","William Gough Limited","85097","468.00","R&M - Departmental planned (external)","130227455","12/09/2018","Maintenance Programme","Centralised R&M","R2001"
"Wolverhampton City Council","http://opendatacommunities.org/id/metropolitan-district-council/wolverhampton","708708","William Gough Limited","85125","106.63","R&M - Departmental planned (external)","130225205","05/09/2018","Maintenance Programme","Centralised R&M","R2001"
"Wolverhampton City Council","http://opendatacommunities.org/id/metropolitan-district-council/wolverhampton","708708","William Gough Limited","85141","1,728.66","R&M - Departmental planned (external)","130225467","05/09/2018","Maintenance Programme","Centralised R&M","R2001"
"Wolverhampton City Council","http://opendatacommunities.org/id/metropolitan-district-council/wolverhampton","708708","William Gough Limited","85157","196.69","R&M - Departmental planned (external)","130225942","12/09/2018","Maintenance Programme","Centralised R&M","R2001"
"Wolverhampton City Council","http://opendatacommunities.org/id/metropolitan-district-council/wolverhampton","708708","William Gough Limited","85096","21,267.01","Construction and Conversion","130227623","12/09/2018","-","Development of Cultural Estate","C1100"
"Wolverhampton City Council","http://opendatacommunities.org/id/metropolitan-district-council/wolverhampton","708708","William Gough Limited","85198","89.89","R&M - Departmental planned (external)","130226574","21/09/2018","Maintenance Programme","Centralised R&M","R2001"
"Wolverhampton City Council","http://opendatacommunities.org/id/metropolitan-district-council/wolverhampton","708708","William Gough Limited","85268","789.57","R&M - Departmental planned (external)","130227457","26/09/2018","Maintenance Programme","Centralised R&M","R2001"
"Wolverhampton City Council","http://opendatacommunities.org/id/metropolitan-district-council/wolverhampton","708708","William Gough Limited","85251","7,824.00","Construction and Conversion","130227091","26/09/2018","-","Capital Maintenance - Heating Pipework Upgrades","C1100"
"Wolverhampton City Council","http://opendatacommunities.org/id/metropolitan-district-council/wolverhampton","708708","William Gough Limited","85234","106.15","R&M - Departmental planned (external)","130226972","26/09/2018","Markets","Bilston Market and Licensed Operations","R2001"
"Wolverhampton City Council","http://opendatacommunities.org/id/metropolitan-district-council/wolverhampton","708708","William Gough Limited","85240","40.00","R&M - Departmental planned (external)","130227089","26/09/2018","Maintenance Programme","Centralised R&M","R2001"
"Wolverhampton City Council","http://opendatacommunities.org/id/metropolitan-district-council/wolverhampton","708708","William Gough Limited","84955","228.42","R&M - Departmental planned (external)","130228720","19/09/2018","Safeguarding","Court of Protection, Funerals and Protection of Property","R2001"
"Wolverhampton City Council","http://opendatacommunities.org/id/metropolitan-district-council/wolverhampton","708708","William Gough Limited","83827","63.25","R&M - Departmental planned (external)","130228719","19/09/2018","Maintenance Programme","Centralised R&M","R2001"
"Wolverhampton City Council","http://opendatacommunities.org/id/metropolitan-district-council/wolverhampton","708708","William Gough Limited","85197","114.38","R&M - Departmental planned (external)","130226573","19/09/2018","Maintenance Programme","Centralised R&M","R2001"
"Wolverhampton City Council","http://opendatacommunities.org/id/metropolitan-district-council/wolverhampton","708708","William Gough Limited","85220","611.85","R&M - Departmental planned (external)","130226873","19/09/2018","Maintenance Programme","Centralised R&M","R2001"
"Wolverhampton City Council","http://opendatacommunities.org/id/metropolitan-district-council/wolverhampton","708708","William Gough Limited","85195","40.00","R&M - Departmental planned (external)","130226483","19/09/2018","Maintenance Programme","Centralised R&M","R2001"
"Wolverhampton City Council","http://opendatacommunities.org/id/metropolitan-district-council/wolverhampton","708708","William Gough Limited","85210","40.00","R&M - Departmental planned (external)","130226701","19/09/2018","Maintenance Programme","Centralised R&M","R2001"
"Wolverhampton City Council","http://opendatacommunities.org/id/metropolitan-district-council/wolverhampton","708708","William Gough Limited","85202","54.94","R&M - Departmental planned (external)","130226578","19/09/2018","Maintenance Programme","Centralised R&M","R2001"
"Wolverhampton City Council","http://opendatacommunities.org/id/metropolitan-district-council/wolverhampton","708708","William Gough Limited","85208","858.31","R&M - Departmental planned (external)","130226700","19/09/2018","Maintenance Programme","Centralised R&M","R2001"
"Wolverhampton City Council","http://opendatacommunities.org/id/metropolitan-district-council/wolverhampton","708708","William Gough Limited","85133","1,102.82","R&M - Departmental planned (external)","130225358","05/09/2018","Maintenance Programme","Centralised R&M","R2001"
"Wolverhampton City Council","http://opendatacommunities.org/id/metropolitan-district-council/wolverhampton","708708","William Gough Limited","85172","2,263.20","R&M - Departmental planned (external)","130226179","12/09/2018","Maintenance Programme","Centralised R&M","R2001"
"Wolverhampton City Council","http://opendatacommunities.org/id/metropolitan-district-council/wolverhampton","708708","William Gough Limited","85169","460.84","R&M - Departmental planned (external)","130226177","12/09/2018","Maintenance Programme","Centralised R&M","R2001"
"Wolverhampton City Council","http://opendatacommunities.org/id/metropolitan-district-council/wolverhampton","708708","William Gough Limited","85276","13,340.77","Construction and Conversion","130227461","28/09/2018","-","Corporate Asset Management","C1100"
"Wolverhampton City Council","http://opendatacommunities.org/id/metropolitan-district-council/wolverhampton","708708","William Gough Limited","85163","4,152.16","R&M - Departmental planned (external)","130226176","12/09/2018","Maintenance Programme","Centralised R&M","R2001"
"Wolverhampton City Council","http://opendatacommunities.org/id/metropolitan-district-council/wolverhampton","708708","William Gough Limited","85145","452.15","R&M - Departmental planned (external)","130225615","05/09/2018","Facilities Management","Caretakers Community Centre","R2001"
"Wolverhampton City Council","http://opendatacommunities.org/id/metropolitan-district-council/wolverhampton","708708","William Gough Limited","85135","64.78","R&M - Departmental planned (external)","130225462","05/09/2018","Maintenance Programme","Centralised R&M","R2001"
"Wolverhampton City Council","http://opendatacommunities.org/id/metropolitan-district-council/wolverhampton","708708","William Gough Limited","85138","41.37","R&M - Departmental planned (external)","130225465","05/09/2018","Maintenance Programme","Centralised R&M","R2001"
"Wolverhampton City Council","http://opendatacommunities.org/id/metropolitan-district-council/wolverhampton","708708","William Gough Limited","85152","10,512.28","R&M - Departmental planned (external)","130226871","12/09/2018","Maintenance Programme","Centralised R&M","R2001"
"Wolverhampton City Council","http://opendatacommunities.org/id/metropolitan-district-council/wolverhampton","708708","William Gough Limited","83944","234.55","R&M - Departmental planned (external)","130226570","12/09/2018","Maintenance Programme","Civic Centre Repairs & Maintenance","R2001"
"Wolverhampton City Council","http://opendatacommunities.org/id/metropolitan-district-council/wolverhampton","708708","William Gough Limited","85137","1,433.82","Construction and Conversion","130225464","05/09/2018","-","Capital Maintenance - Structural Works","C1100"
"Wolverhampton City Council","http://opendatacommunities.org/id/metropolitan-district-council/wolverhampton","708708","William Gough Limited","C2415","-37.96","R&M - Departmental planned (external)","130225469","05/09/2018","Maintenance Programme","Centralised R&M","R2001"
"Wolverhampton City Council","http://opendatacommunities.org/id/metropolitan-district-council/wolverhampton","708708","William Gough Limited","80857","481.85","R&M - Departmental planned (external)","130163256","19/09/2018","Leisure Services","Aldersley Leisure Village","R2001"
"Wolverhampton City Council","http://opendatacommunities.org/id/metropolitan-district-council/wolverhampton","708708","William Gough Limited","85223","608.59","R&M - Departmental planned (external)","130226876","19/09/2018","Maintenance Programme","Centralised R&M","R2001"
"Wolverhampton City Council","http://opendatacommunities.org/id/metropolitan-district-council/wolverhampton","708708","William Gough Limited","85177","19,929.59","Construction and Conversion","130226467","19/09/2018","-","Corporate Asset Management","C1100"
"Wolverhampton City Council","http://opendatacommunities.org/id/metropolitan-district-council/wolverhampton","708708","William Gough Limited","85196","40.00","R&M - Departmental planned (external)","130226484","19/09/2018","Maintenance Programme","Civic Centre Repairs & Maintenance","R2001"
"Wolverhampton City Council","http://opendatacommunities.org/id/metropolitan-district-council/wolverhampton","708708","William Gough Limited","85187","45.30","R&M - Departmental planned (external)","130226476","19/09/2018","Maintenance Programme","Centralised R&M","R2001"
"Wolverhampton City Council","http://opendatacommunities.org/id/metropolitan-district-council/wolverhampton","708708","William Gough Limited","85189","146.38","R&M - Departmental planned (external)","130226478","19/09/2018","Maintenance Programme","Centralised R&M","R2001"
"Wolverhampton City Council","http://opendatacommunities.org/id/metropolitan-district-council/wolverhampton","708708","William Gough Limited","85191","62.73","R&M - Departmental planned (external)","130226480","19/09/2018","Maintenance Programme","Centralised R&M","R2001"
"Wolverhampton City Council","http://opendatacommunities.org/id/metropolitan-district-council/wolverhampton","708708","William Gough Limited","85222","147.44","R&M - Departmental planned (external)","130226875","19/09/2018","Estates and Valuations","Industrial Premises ; NEC,Monmore Road","R2001"
"Wolverhampton City Council","http://opendatacommunities.org/id/metropolitan-district-council/wolverhampton","708708","William Gough Limited","85212","40.00","R&M - Departmental planned (external)","130226703","19/09/2018","Maintenance Programme","Centralised R&M","R2001"
"Wolverhampton City Council","http://opendatacommunities.org/id/metropolitan-district-council/wolverhampton","708708","William Gough Limited","85200","58.97","R&M - Departmental planned (external)","130226576","19/09/2018","Maintenance Programme","Centralised R&M","R2001"
"Wolverhampton City Council","http://opendatacommunities.org/id/metropolitan-district-council/wolverhampton","708708","William Gough Limited","85248","92.30","R&M - Departmental planned (external)","130227090","26/09/2018","Maintenance Programme","Centralised R&M","R2001"
"Wolverhampton City Council","http://opendatacommunities.org/id/metropolitan-district-council/wolverhampton","708708","William Gough Limited","85190","40.00","R&M - Departmental planned (external)","130226479","26/09/2018","Maintenance Programme","Centralised R&M","R2001"
"Wolverhampton City Council","http://opendatacommunities.org/id/metropolitan-district-council/wolverhampton","708708","William Gough Limited","85269","5,500.00","R&M - Departmental planned (external)","130227458","26/09/2018","Maintenance Programme","Centralised R&M","R2001"
"Wolverhampton City Council","http://opendatacommunities.org/id/metropolitan-district-council/wolverhampton","708708","William Gough Limited","84794","460.53","R&M - Departmental planned (external)","130220306","07/09/2018","Maintenance Programme","Centralised R&M","R2001"
"Wolverhampton City Council","http://opendatacommunities.org/id/metropolitan-district-council/wolverhampton","708708","William Gough Limited","85171","159.15","R&M - Departmental planned (external)","130226178","12/09/2018","Markets","Bilston Market and Licensed Operations","R2001"
"Wolverhampton City Council","http://opendatacommunities.org/id/metropolitan-district-council/wolverhampton","708708","William Gough Limited","85161","1,848.71","R&M - Departmental planned (external)","130226025","12/09/2018","Maintenance Programme","Centralised R&M","R2001"
"Wolverhampton City Council","http://opendatacommunities.org/id/metropolitan-district-council/wolverhampton","708708","William Gough Limited","85155","1,165.62","R&M - Departmental planned (external)","130226174","12/09/2018","Maintenance Programme","Centralised R&M","R2001"
"Wolverhampton City Council","http://opendatacommunities.org/id/metropolitan-district-council/wolverhampton","708708","William Gough Limited","85277","60,000.00","Construction and Conversion","130227462","28/09/2018","-","Capital Maintenance - Roof / Ceilings Replacements","C1100"
"Wolverhampton City Council","http://opendatacommunities.org/id/metropolitan-district-council/wolverhampton","708708","William Gough Limited","85143","1,389.61","R&M - Departmental planned (external)","130225613","05/09/2018","Maintenance Programme","Centralised R&M","R2001"
"Wolverhampton City Council","http://opendatacommunities.org/id/metropolitan-district-council/wolverhampton","708708","William Gough Limited","85147","226.39","R&M - Departmental planned (external)","130225617","05/09/2018","Maintenance Programme","Centralised R&M","R2001"
"Wolverhampton City Council","http://opendatacommunities.org/id/metropolitan-district-council/wolverhampton","708708","William Gough Limited","85139","1,363.90","R&M - Departmental planned (external)","130225466","05/09/2018","Maintenance Programme","Centralised R&M","R2001"
"Wolverhampton City Council","http://opendatacommunities.org/id/metropolitan-district-council/wolverhampton","708708","William Gough Limited","85150","40.00","R&M - Departmental planned (external)","130225619","05/09/2018","Maintenance Programme","Centralised R&M","R2001"
"Wolverhampton City Council","http://opendatacommunities.org/id/metropolitan-district-council/wolverhampton","708708","William Gough Limited","85132","62.27","R&M - Departmental planned (external)","130225357","05/09/2018","Maintenance Programme","Centralised R&M","R2001"
"Wolverhampton City Council","http://opendatacommunities.org/id/metropolitan-district-council/wolverhampton","708708","William Gough Limited","85124","75.49","R&M - Departmental planned (external)","130225204","05/09/2018","Maintenance Programme","Centralised R&M","R2001"
"Wolverhampton City Council","http://opendatacommunities.org/id/metropolitan-district-council/wolverhampton","708708","William Gough Limited","84880","505.00","R&M - Departmental planned (external)","130228595","19/09/2018","Maintenance Programme","Centralised R&M","R2001"
"Wolverhampton City Council","http://opendatacommunities.org/id/metropolitan-district-council/wolverhampton","708708","William Gough Limited","85238","40.00","R&M - Departmental planned (external)","130226973","26/09/2018","Maintenance Programme","Centralised R&M","R2001"
"Wolverhampton City Council","http://opendatacommunities.org/id/metropolitan-district-council/wolverhampton","708708","William Gough Limited","85265","21,000.00","R&M - Departmental planned (external)","130227240","26/09/2018","Schools","Bilston Church of England Primary School","R2001"
"Wolverhampton City Council","http://opendatacommunities.org/id/metropolitan-district-council/wolverhampton","708708","William Gough Limited","85229","128.08","R&M - Departmental planned (external)","130226878","26/09/2018","Maintenance Programme","Civic Centre Repairs & Maintenance","R2001"
"Wolverhampton City Council","http://opendatacommunities.org/id/metropolitan-district-council/wolverhampton","708708","William Gough Limited","85183","40.00","R&M - Departmental planned (external)","130226472","19/09/2018","Maintenance Programme","Centralised R&M","R2001"
"Wolverhampton City Council","http://opendatacommunities.org/id/metropolitan-district-council/wolverhampton","708708","William Gough Limited","85201","53.08","R&M - Departmental planned (external)","130226577","19/09/2018","Maintenance Programme","Centralised R&M","R2001"
"Wolverhampton City Council","http://opendatacommunities.org/id/metropolitan-district-council/wolverhampton","708708","William Gough Limited","85199","356.06","R&M - Departmental planned (external)","130226575","19/09/2018","Maintenance Programme","Centralised R&M","R2001"
"Wolverhampton City Council","http://opendatacommunities.org/id/metropolitan-district-council/wolverhampton","708708","William Gough Limited","85188","42.64","R&M - Departmental planned (external)","130226477","19/09/2018","Facilities Management","Caretakers Community Centre","R2001"
"Wolverhampton City Council","http://opendatacommunities.org/id/metropolitan-district-council/wolverhampton","708708","William Gough Limited","85203","135.64","R&M - Departmental planned (external)","130226579","19/09/2018","Maintenance Programme","Centralised R&M","R2001"
"Wolverhampton City Council","http://opendatacommunities.org/id/metropolitan-district-council/wolverhampton","708708","William Gough Limited","85211","144.74","R&M - Departmental planned (external)","130226702","19/09/2018","Maintenance Programme","Centralised R&M","R2001"
"Wolverhampton City Council","http://opendatacommunities.org/id/metropolitan-district-council/wolverhampton","708708","William Gough Limited","85217","78.21","R&M - Departmental planned (external)","130226707","19/09/2018","Maintenance Programme","Centralised R&M","R2001"
"Wolverhampton City Council","http://opendatacommunities.org/id/metropolitan-district-council/wolverhampton","708708","William Gough Limited","85218","150.17","R&M - Departmental planned (external)","130226708","19/09/2018","Maintenance Programme","Centralised R&M","R2001"
"Wolverhampton City Council","http://opendatacommunities.org/id/metropolitan-district-council/wolverhampton","708708","William Gough Limited","85153","2,197.12","R&M - Departmental planned (external)","130226172","07/09/2018","Maintenance Programme","Centralised R&M","R2001"
"Wolverhampton City Council","http://opendatacommunities.org/id/metropolitan-district-council/wolverhampton","708725","Wirs (Wolverhampton) Limited","B32269","47.40","Materials","190510186","26/09/2018","Fleet Services","Fleet Management","R4007"
"Wolverhampton City Council","http://opendatacommunities.org/id/metropolitan-district-council/wolverhampton","708725","Wirs (Wolverhampton) Limited","B32269","26.20","Materials","190510186","26/09/2018","Fleet Services","Fleet Management","R4007"
"Wolverhampton City Council","http://opendatacommunities.org/id/metropolitan-district-council/wolverhampton","708725","Wirs (Wolverhampton) Limited","B32269","1,155.00","Materials","190510186","26/09/2018","Fleet Services","Fleet Management","R4007"
"Wolverhampton City Council","http://opendatacommunities.org/id/metropolitan-district-council/wolverhampton","708725","Wirs (Wolverhampton) Limited","B32269","124.00","Materials","190510186","26/09/2018","Fleet Services","Fleet Management","R4007"
"Wolverhampton City Council","http://opendatacommunities.org/id/metropolitan-district-council/wolverhampton","708725","Wirs (Wolverhampton) Limited","B32269","8.60","Materials","190510186","26/09/2018","Fleet Services","Fleet Management","R4007"
"Wolverhampton City Council","http://opendatacommunities.org/id/metropolitan-district-council/wolverhampton","708725","Wirs (Wolverhampton) Limited","B32269","3.87","Materials","190510186","26/09/2018","Fleet Services","Fleet Management","R4007"
"Wolverhampton City Council","http://opendatacommunities.org/id/metropolitan-district-council/wolverhampton","708725","Wirs (Wolverhampton) Limited","B32269","36.90","Materials","190510186","26/09/2018","Fleet Services","Fleet Management","R4007"
"Wolverhampton City Council","http://opendatacommunities.org/id/metropolitan-district-council/wolverhampton","708725","Wirs (Wolverhampton) Limited","B32269","3.40","Materials","190510186","26/09/2018","Fleet Services","Fleet Management","R4007"
"Wolverhampton City Council","http://opendatacommunities.org/id/metropolitan-district-council/wolverhampton","708725","Wirs (Wolverhampton) Limited","B32269","28.08","Materials","190510186","26/09/2018","Fleet Services","Fleet Management","R4007"
"Wolverhampton City Council","http://opendatacommunities.org/id/metropolitan-district-council/wolverhampton","708761","Wolverhampton Doctors Limited","M2018Q115HL2COMQ","350.00","TPP - Public Health Contracts","190504405","12/09/2018","Healthy Life Expectancy","Healthy Lifestyles","R5060"
"Wolverhampton City Council","http://opendatacommunities.org/id/metropolitan-district-council/wolverhampton","708762","Wolverhampton Domestic Violence Forum","328","3,250.00","Grant Payments","130226027","12/09/2018","Community Safety","VAWG service transformation Fund","R4700"
"Wolverhampton City Council","http://opendatacommunities.org/id/metropolitan-district-council/wolverhampton","708768","Wolverhampton Grammar School","B0006406","7,246.98","TPP - Independent Schools","130228493","19/09/2018","Special Educational Needs","SEN Education OOC","R5036"
"Wolverhampton City Council","http://opendatacommunities.org/id/metropolitan-district-council/wolverhampton","708769","Wolverhampton Grand Theatre (1982) Ltd","SIN000037","3,721.23","Room Hire","130226485","19/09/2018","School Planning & Resources","Learning Technologies","R2201"
"Wolverhampton City Council","http://opendatacommunities.org/id/metropolitan-district-council/wolverhampton","708770","Wolverhampton Homes Limited","17/0715/SAG","1,308.78","Grants paid out to other organisations","190511062","28/09/2018","-","Disabled Facilities Grants","C5011"
"Wolverhampton City Council","http://opendatacommunities.org/id/metropolitan-district-council/wolverhampton","708770","Wolverhampton Homes Limited","2600026253","162,826.99","Construction and Conversion","130225210","05/09/2018","-","External Improvement Programme","C1100"
"Wolverhampton City Council","http://opendatacommunities.org/id/metropolitan-district-council/wolverhampton","708770","Wolverhampton Homes Limited","17/0393/DFG","131.16","Grants paid out to other organisations","190511061","28/09/2018","-","Disabled Facilities Grants","C5011"
"Wolverhampton City Council","http://opendatacommunities.org/id/metropolitan-district-council/wolverhampton","708770","Wolverhampton Homes Limited","2600026324","540.00","Services - Professional Fees","130226710","19/09/2018","Public Protection","Regulatory Services - Works in Default","R4400"
"Wolverhampton City Council","http://opendatacommunities.org/id/metropolitan-district-council/wolverhampton","708793","Wolverhampton Waste Services Limited","W48/18","396,778.54","TPP - Other contractors","130225359","05/09/2018","Waste and Recycling Service","Waste Disposal - General","R5099"
"Wolverhampton City Council","http://opendatacommunities.org/id/metropolitan-district-council/wolverhampton","708793","Wolverhampton Waste Services Limited","W50/18","419,011.02","TPP - Other contractors","130226028","12/09/2018","Waste and Recycling Service","Waste Disposal - General","R5099"
"Wolverhampton City Council","http://opendatacommunities.org/id/metropolitan-district-council/wolverhampton","708793","Wolverhampton Waste Services Limited","W51/18","12,345.70","TPP - Other contractors","130226029","12/09/2018","Waste and Recycling Service","Waste Disposal - General","R5099"
"Wolverhampton City Council","http://opendatacommunities.org/id/metropolitan-district-council/wolverhampton","708793","Wolverhampton Waste Services Limited","W49/18","7,533.94","TPP - Other contractors","130225360","05/09/2018","Waste and Recycling Service","Waste Disposal - General","R5099"
"Wolverhampton City Council","http://opendatacommunities.org/id/metropolitan-district-council/wolverhampton","708865","XMA Limited","KL56768","7.00","Computing - Consumables","130226580","26/09/2018","ICTS","Strategic ICTS (ICT Service Budget)","R4532"
"Wolverhampton City Council","http://opendatacommunities.org/id/metropolitan-district-council/wolverhampton","708865","XMA Limited","KL34157","4,800.00","Plant, Equipment, Machinery & Computer Hardware","130225471","05/09/2018","-","ICT Desktop Refresh","C3000"
"Wolverhampton City Council","http://opendatacommunities.org/id/metropolitan-district-council/wolverhampton","708865","XMA Limited","KL10178","767.87","Computing - Consumables","130223918","19/09/2018","ICTS","Strategic ICTS (ICT Service Budget)","R4532"
"Wolverhampton City Council","http://opendatacommunities.org/id/metropolitan-district-council/wolverhampton","708867","Xpress Software Solutions Limited","2018438","4,295.00","Equipment - Hire","130227365","26/09/2018","Public Service Reform","Electoral Registration","R4001"
"Wolverhampton City Council","http://opendatacommunities.org/id/metropolitan-district-council/wolverhampton","708886","Ymca City Tots","NEF Autumn 2018 INST 1","10,064.25","TPP - Private Nursery Education Funding","190508148","19/09/2018","Early Years","Early Years Universal Entitlement for 3 and 4 Year Olds","R5035"
"Wolverhampton City Council","http://opendatacommunities.org/id/metropolitan-district-council/wolverhampton","708886","Ymca City Tots","TFT Autumn 2018 Inst 1","9,432.00","TPP - Private Nursery Education Funding","190508160","19/09/2018","Early Years","Early Years Entitlement Funding for Disadvantaged 2 Year Olds","R5035"
"Wolverhampton City Council","http://opendatacommunities.org/id/metropolitan-district-council/wolverhampton","708896","Young Ones Nursery","NEF Autumn 2018 INST 1","19,899.80","TPP - Private Nursery Education Funding","190508148","19/09/2018","Early Years","Early Years Universal Entitlement for 3 and 4 Year Olds","R5035"
"Wolverhampton City Council","http://opendatacommunities.org/id/metropolitan-district-council/wolverhampton","709154","A And A Automatics Limited","9542","146.00","R&M - Departmental planned (external)","130226711","05/09/2018","Facilities Management","Bilston Town Hall","R2001"
"Wolverhampton City Council","http://opendatacommunities.org/id/metropolitan-district-council/wolverhampton","709154","A And A Automatics Limited","9617","180.00","R&M - Departmental planned (external)","130229549","28/09/2018","Facilities Management","Culwell Street Depot","R2001"
"Wolverhampton City Council","http://opendatacommunities.org/id/metropolitan-district-council/wolverhampton","709154","A And A Automatics Limited","9540","110.00","R&M - Departmental planned (external)","130226882","05/09/2018","Facilities Management","Culwell Street Depot","R2001"
"Wolverhampton City Council","http://opendatacommunities.org/id/metropolitan-district-council/wolverhampton","709154","A And A Automatics Limited","9457","326.00","R&M - Departmental planned (external)","130226880","05/09/2018","Cleaning","Public Conveniences","R2001"
"Wolverhampton City Council","http://opendatacommunities.org/id/metropolitan-district-council/wolverhampton","709154","A And A Automatics Limited","9469","110.00","R&M - Departmental planned (external)","130226881","05/09/2018","Facilities Management","Bilston Town Hall","R2001"
"Wolverhampton City Council","http://opendatacommunities.org/id/metropolitan-district-council/wolverhampton","709298","C Hopkins","00045/1","10.00","Services - Professional Fees","190501485","05/09/2018","Transportation","Advisory Road Markings and Disabled Bays","R4400"
"Wolverhampton City Council","http://opendatacommunities.org/id/metropolitan-district-council/wolverhampton","709298","C Hopkins","00045","1,990.00","TPP - Maintenance Contractor - General","190501484","05/09/2018","Transportation","Cycling Schemes - Bikeability","R5720"
"Wolverhampton City Council","http://opendatacommunities.org/id/metropolitan-district-council/wolverhampton","709319","A G Jones Stocktakers","180859","100.00","Services - Professional Fees","130228024","19/09/2018","Visitor Economy","Bantock - Tea Rooms","R4400"
"Wolverhampton City Council","http://opendatacommunities.org/id/metropolitan-district-council/wolverhampton","709319","A G Jones Stocktakers","180858","100.00","Services - Professional Fees","130228726","19/09/2018","Visitor Economy","Art Gallery Tea Room","R4400"
"Wolverhampton City Council","http://opendatacommunities.org/id/metropolitan-district-council/wolverhampton","709561","A O Darby","WHTW0718-001","1,221.00","Services - Professional Fees","130227628","19/09/2018","Visitor Economy","Technical Support - ACE NPO WAG","R4400"
"Wolverhampton City Council","http://opendatacommunities.org/id/metropolitan-district-council/wolverhampton","709704","A.B.C.- Countdown Cars Limited","4894","94.00","Client Transport","130216382","26/09/2018","Inclusion Support","Inclusion Support","R3042"
"Wolverhampton City Council","http://opendatacommunities.org/id/metropolitan-district-council/wolverhampton","709704","A.B.C.- Countdown Cars Limited","4570","250.00","Client Transport","130227630","07/09/2018","Special Educational Needs","SEN Education OOC","R3042"
"Wolverhampton City Council","http://opendatacommunities.org/id/metropolitan-district-council/wolverhampton","709704","A.B.C.- Countdown Cars Limited","3973","250.00","Client Transport","130227629","07/09/2018","Special Educational Needs","SEN Education OOC","R3042"
"Wolverhampton City Council","http://opendatacommunities.org/id/metropolitan-district-council/wolverhampton","710089","ABC Early Learning & Childcare Cent","TFT Autumn 2018 Inst 1","7,520.45","TPP - Private Nursery Education Funding","190508160","19/09/2018","Early Years","Early Years Entitlement Funding for Disadvantaged 2 Year Olds","R5035"
"Wolverhampton City Council","http://opendatacommunities.org/id/metropolitan-district-council/wolverhampton","710089","ABC Early Learning & Childcare Cent","NEF Autumn 2018 INST 1","41,837.33","TPP - Private Nursery Education Funding","190508148","19/09/2018","Early Years","Early Years Universal Entitlement for 3 and 4 Year Olds","R5035"
"Wolverhampton City Council","http://opendatacommunities.org/id/metropolitan-district-council/wolverhampton","710133","Abel Alarm Company Limited.","411025410","80.00","Fixtures and Fittings - R&M","130223622","19/09/2018","Adult Education","The Maltings","R2502"
"Wolverhampton City Council","http://opendatacommunities.org/id/metropolitan-district-council/wolverhampton","710375","Access Hire Nationwide Limited","69792","37.71","Materials","130229121","21/09/2018","Street Lighting","Street Lighting Maintenance","R4007"
"Wolverhampton City Council","http://opendatacommunities.org/id/metropolitan-district-council/wolverhampton","710375","Access Hire Nationwide Limited","69792","10.77","Materials","130229121","21/09/2018","Street Lighting","Street Lighting Maintenance","R4007"
"Wolverhampton City Council","http://opendatacommunities.org/id/metropolitan-district-council/wolverhampton","710375","Access Hire Nationwide Limited","69792","180.00","Materials","130229121","21/09/2018","Street Lighting","Street Lighting Maintenance","R4007"
"Wolverhampton City Council","http://opendatacommunities.org/id/metropolitan-district-council/wolverhampton","710375","Access Hire Nationwide Limited","69792","560.00","Materials","130229121","21/09/2018","Street Lighting","Street Lighting Maintenance","R4007"
"Wolverhampton City Council","http://opendatacommunities.org/id/metropolitan-district-council/wolverhampton","710375","Access Hire Nationwide Limited","69792","78.88","Materials","130229121","21/09/2018","Street Lighting","Street Lighting Maintenance","R4007"
"Wolverhampton City Council","http://opendatacommunities.org/id/metropolitan-district-council/wolverhampton","710375","Access Hire Nationwide Limited","75043","1,298.00","Hire of Vehicles","190506330","19/09/2018","Fleet Services","Fleet Management","R3200"
"Wolverhampton City Council","http://opendatacommunities.org/id/metropolitan-district-council/wolverhampton","710375","Access Hire Nationwide Limited","75042","1,298.00","Hire of Vehicles","190506329","19/09/2018","Fleet Services","Fleet Management","R3200"
"Wolverhampton City Council","http://opendatacommunities.org/id/metropolitan-district-council/wolverhampton","710375","Access Hire Nationwide Limited","75224","1,179.80","Materials","130227881","12/09/2018","Street Lighting","Street Lighting Maintenance","R4007"
"Wolverhampton City Council","http://opendatacommunities.org/id/metropolitan-district-council/wolverhampton","710375","Access Hire Nationwide Limited","75224","48.45","Materials","130227881","12/09/2018","Street Lighting","Street Lighting Maintenance","R4007"
"Wolverhampton City Council","http://opendatacommunities.org/id/metropolitan-district-council/wolverhampton","710375","Access Hire Nationwide Limited","75224","9.64","Materials","130227881","12/09/2018","Street Lighting","Street Lighting Maintenance","R4007"
"Wolverhampton City Council","http://opendatacommunities.org/id/metropolitan-district-council/wolverhampton","710375","Access Hire Nationwide Limited","75224","80.00","Materials","130227881","12/09/2018","Street Lighting","Street Lighting Maintenance","R4007"
"Wolverhampton City Council","http://opendatacommunities.org/id/metropolitan-district-council/wolverhampton","710375","Access Hire Nationwide Limited","75224","60.00","Materials","130227881","12/09/2018","Street Lighting","Street Lighting Maintenance","R4007"
"Wolverhampton City Council","http://opendatacommunities.org/id/metropolitan-district-council/wolverhampton","710375","Access Hire Nationwide Limited","75224","40.00","Materials","130227881","12/09/2018","Street Lighting","Street Lighting Maintenance","R4007"
"Wolverhampton City Council","http://opendatacommunities.org/id/metropolitan-district-council/wolverhampton","710375","Access Hire Nationwide Limited","75224","100.00","Materials","130227881","12/09/2018","Street Lighting","Street Lighting Maintenance","R4007"
"Wolverhampton City Council","http://opendatacommunities.org/id/metropolitan-district-council/wolverhampton","710375","Access Hire Nationwide Limited","75224","360.00","Materials","130227881","12/09/2018","Street Lighting","Street Lighting Maintenance","R4007"
"Wolverhampton City Council","http://opendatacommunities.org/id/metropolitan-district-council/wolverhampton","710375","Access Hire Nationwide Limited","75046","736.00","Equipment - Hire","130226974","05/09/2018","Highways Maintenance","Planned Highways Maintenance","R4001"
"Wolverhampton City Council","http://opendatacommunities.org/id/metropolitan-district-council/wolverhampton","710375","Access Hire Nationwide Limited","75045","1,276.00","Hire of Vehicles","190506332","19/09/2018","Fleet Services","Fleet Management","R3200"
"Wolverhampton City Council","http://opendatacommunities.org/id/metropolitan-district-council/wolverhampton","710375","Access Hire Nationwide Limited","75044","1,276.00","Hire of Vehicles","190506331","19/09/2018","Fleet Services","Fleet Management","R3200"
"Wolverhampton City Council","http://opendatacommunities.org/id/metropolitan-district-council/wolverhampton","710479","EON","115811","304.00","Materials","130226326","12/09/2018","Street Lighting","Street Lighting Maintenance","R4007"
"Wolverhampton City Council","http://opendatacommunities.org/id/metropolitan-district-council/wolverhampton","710479","EON","115810","9,970.00","Materials","130226325","12/09/2018","Street Lighting","Signs Illuminated","R4007"
"Wolverhampton City Council","http://opendatacommunities.org/id/metropolitan-district-council/wolverhampton","710479","EON","7130405","450.00","Electricity","130225746","07/09/2018","Housing","Housing Regeneration - Strategy & Development","R2100"
"Wolverhampton City Council","http://opendatacommunities.org/id/metropolitan-district-council/wolverhampton","710567","NHS Wolverhampton CCG","7020500581","193,000.00","TPP - Payments to Health Authorities","130227241","26/09/2018","Better Care Fund","Better Care Fund","R5101"
"Wolverhampton City Council","http://opendatacommunities.org/id/metropolitan-district-council/wolverhampton","710569","British Gas Business","958378315","35.82","Gas","190510951","28/09/2018","Estates and Valuations","Industrial Premises ; Fordhouse Road","R2101"
"Wolverhampton City Council","http://opendatacommunities.org/id/metropolitan-district-council/wolverhampton","710569","British Gas Business","958383667","12.71","Electricity","190510956","28/09/2018","Estates and Valuations","Offices ; Bond House","R2100"
"Wolverhampton City Council","http://opendatacommunities.org/id/metropolitan-district-council/wolverhampton","710569","British Gas Business","709299527","144.34","Electricity","190510959","28/09/2018","Corporate Asset Management","Central Utilities to Recharge","R2100"
"Wolverhampton City Council","http://opendatacommunities.org/id/metropolitan-district-council/wolverhampton","710569","British Gas Business","965362997","53.90","Gas","190510953","28/09/2018","Estates and Valuations","Industrial Premises ; Fordhouse Road","R2101"
"Wolverhampton City Council","http://opendatacommunities.org/id/metropolitan-district-council/wolverhampton","710569","British Gas Business","430492496","14.43","Electricity","190510957","28/09/2018","Estates and Valuations","Industrial Premises ; Fordhouse Road","R2100"
"Wolverhampton City Council","http://opendatacommunities.org/id/metropolitan-district-council/wolverhampton","710569","British Gas Business","962375808","15.63","Electricity","190510448","26/09/2018","Estates and Valuations","Offices ; Bond House","R2100"
"Wolverhampton City Council","http://opendatacommunities.org/id/metropolitan-district-council/wolverhampton","710569","British Gas Business","961368411","52.27","Electricity","190510952","28/09/2018","Estates and Valuations","Industrial Premises ; Fordhouse Road","R2100"
"Wolverhampton City Council","http://opendatacommunities.org/id/metropolitan-district-council/wolverhampton","710569","British Gas Business","991238000","18.05","Electricity","190510954","28/09/2018","Estates and Valuations","Shops ; Other","R2100"
"Wolverhampton City Council","http://opendatacommunities.org/id/metropolitan-district-council/wolverhampton","710569","British Gas Business","974316009","80.43","Gas","190510950","28/09/2018","Estates and Valuations","Industrial Premises ; Fordhouse Road","R2101"
"Wolverhampton City Council","http://opendatacommunities.org/id/metropolitan-district-council/wolverhampton","710569","British Gas Business","251009282","29.27","Gas","190510958","28/09/2018","Estates and Valuations","Industrial Premises ; Fordhouse Road","R2101"
"Wolverhampton City Council","http://opendatacommunities.org/id/metropolitan-district-council/wolverhampton","710569","British Gas Business","991238001","18.04","Electricity","190510955","28/09/2018","Corporate Asset Management","Central Utilities to Recharge","R2100"
"Wolverhampton City Council","http://opendatacommunities.org/id/metropolitan-district-council/wolverhampton","710573","Western Power Distribution (West Mids) t/a Western Power Distribution","KP00145696","681.23","TPP - Maintenance on Other Roads","130225621","12/09/2018","Street Lighting","Street Lighting Maintenance","R5710"
"Wolverhampton City Council","http://opendatacommunities.org/id/metropolitan-district-council/wolverhampton","710573","Western Power Distribution (West Mids) t/a Western Power Distribution","KP00146114","4,863.88","TPP - Maintenance on Other Roads","130226582","19/09/2018","Street Lighting","Street Lighting Maintenance","R5710"
"Wolverhampton City Council","http://opendatacommunities.org/id/metropolitan-district-council/wolverhampton","710573","Western Power Distribution (West Mids) t/a Western Power Distribution","KI00140669","694.47","TPP - Maintenance on Other Roads","130225943","12/09/2018","Street Lighting","Street Lighting Maintenance","R5710"
"Wolverhampton City Council","http://opendatacommunities.org/id/metropolitan-district-council/wolverhampton","710573","Western Power Distribution (West Mids) t/a Western Power Distribution","KP00145697","681.23","TPP - Maintenance on Other Roads","130225622","12/09/2018","Street Lighting","Street Lighting Maintenance","R5710"
"Wolverhampton City Council","http://opendatacommunities.org/id/metropolitan-district-council/wolverhampton","710573","Western Power Distribution (West Mids) t/a Western Power Distribution","KI00140518","630.62","TPP - Maintenance on Other Roads","130227242","21/09/2018","Street Lighting","Street Lighting Maintenance","R5710"
"Wolverhampton City Council","http://opendatacommunities.org/id/metropolitan-district-council/wolverhampton","710600","E H Smith Builders Merchant LTD","0002/00025855","2,267.00","Materials","130225747","05/09/2018","Highways Maintenance","Patching","R4007"
"Wolverhampton City Council","http://opendatacommunities.org/id/metropolitan-district-council/wolverhampton","710609","Drs Saini & Mehta","M2018Q115HL2COMQ","2,200.00","TPP - Public Health Contracts","190504386","12/09/2018","Healthy Life Expectancy","Healthy Lifestyles","R5060"
"Wolverhampton City Council","http://opendatacommunities.org/id/metropolitan-district-council/wolverhampton","710609","Drs Saini & Mehta","M2018Q115HL1IHCQ","56.50","TPP - Public Health Contracts","190504385","12/09/2018","Healthy Life Expectancy","Healthy Lifestyles","R5060"
"Wolverhampton City Council","http://opendatacommunities.org/id/metropolitan-district-council/wolverhampton","710610","Dr A Sharma","LA001JUNE2018","2,035.00","Services - Professional Fees","130228919","19/09/2018","Bereavement Services","Crematorium","R4400"
"Wolverhampton City Council","http://opendatacommunities.org/id/metropolitan-district-council/wolverhampton","710610","Dr A Sharma","LANDA001AUG2018","2,019.00","Services - Professional Fees","130227745","07/09/2018","Bereavement Services","Crematorium","R4400"
"Wolverhampton City Council","http://opendatacommunities.org/id/metropolitan-district-council/wolverhampton","710610","Dr A Sharma","M2018Q115HL2COMQ","200.00","TPP - Public Health Contracts","190504400","12/09/2018","Healthy Life Expectancy","Healthy Lifestyles","R5060"
"Wolverhampton City Council","http://opendatacommunities.org/id/metropolitan-district-council/wolverhampton","710610","Dr A Sharma","L&A002AUG2018","1,091.50","Services - Professional Fees","130228025","19/09/2018","Bereavement Services","Crematorium","R4400"
"Wolverhampton City Council","http://opendatacommunities.org/id/metropolitan-district-council/wolverhampton","710610","Dr A Sharma","M2018Q115HL1IHCQ","8.00","TPP - Public Health Contracts","190504399","12/09/2018","Healthy Life Expectancy","Healthy Lifestyles","R5060"
"Wolverhampton City Council","http://opendatacommunities.org/id/metropolitan-district-council/wolverhampton","710615","Poplars Medical Practice","M2018Q115HL2COMQ","1,025.00","TPP - Public Health Contracts","190504365","12/09/2018","Healthy Life Expectancy","Healthy Lifestyles","R5060"
"Wolverhampton City Council","http://opendatacommunities.org/id/metropolitan-district-council/wolverhampton","710615","Poplars Medical Practice","M2018Q115HL1IHCQ","11.50","TPP - Public Health Contracts","190504364","12/09/2018","Healthy Life Expectancy","Healthy Lifestyles","R5060"
"Wolverhampton City Council","http://opendatacommunities.org/id/metropolitan-district-council/wolverhampton","710620","ARCO Central LTD","933747843","34.20","Equipment - Purchase","190505040","14/09/2018","Fleet Services","Fleet Management","R4000"
"Wolverhampton City Council","http://opendatacommunities.org/id/metropolitan-district-council/wolverhampton","710640","Turner & Townsend Project Management LTD","000825045","2,300.40","External Professional Fees","130226975","26/09/2018","-","GF - Interchange - Ph2 Train Station/MSCP/Metro Extension","C6002"
"Wolverhampton City Council","http://opendatacommunities.org/id/metropolitan-district-council/wolverhampton","710664","NonStop Recruitment LTD","147599","1,251.38","Agency Staff","130218008","07/09/2018","Child Protection","CIN/CP Social Work Unit - Area 1","R1100"
"Wolverhampton City Council","http://opendatacommunities.org/id/metropolitan-district-council/wolverhampton","710664","NonStop Recruitment LTD","147872","1,304.25","Agency Staff","130218009","07/09/2018","Child Protection","CIN/CP Social Work Unit - Area 1","R1100"
"Wolverhampton City Council","http://opendatacommunities.org/id/metropolitan-district-council/wolverhampton","710664","NonStop Recruitment LTD","150177","1,312.50","Agency Staff","130224837","07/09/2018","Child Protection","CIN/CP Social Work Unit - Area 1","R1100"
"Wolverhampton City Council","http://opendatacommunities.org/id/metropolitan-district-council/wolverhampton","710664","NonStop Recruitment LTD","148217","1,057.50","Agency Staff","130218642","07/09/2018","Child Protection","CIN/CP Social Work Unit - Area 1","R1100"
"Wolverhampton City Council","http://opendatacommunities.org/id/metropolitan-district-council/wolverhampton","710664","NonStop Recruitment LTD","150343","1,312.50","Agency Staff","130225364","07/09/2018","Child Protection","CIN/CP Social Work Unit - Area 1","R1100"
"Wolverhampton City Council","http://opendatacommunities.org/id/metropolitan-district-council/wolverhampton","710664","NonStop Recruitment LTD","150176","1,312.50","Agency Staff","130224836","07/09/2018","Child Protection","CIN/CP Social Work Unit - Area 1","R1100"
"Wolverhampton City Council","http://opendatacommunities.org/id/metropolitan-district-council/wolverhampton","710664","NonStop Recruitment LTD","144790","1,304.25","Agency Staff","130227525","07/09/2018","Child Protection","CIN/CP Social Work Unit - Area 1","R1100"
"Wolverhampton City Council","http://opendatacommunities.org/id/metropolitan-district-council/wolverhampton","710664","NonStop Recruitment LTD","148662","1,304.25","Agency Staff","130219966","07/09/2018","Child Protection","CIN/CP Social Work Unit - Area 1","R1100"
"Wolverhampton City Council","http://opendatacommunities.org/id/metropolitan-district-council/wolverhampton","710664","NonStop Recruitment LTD","149135","1,251.38","Agency Staff","130221678","07/09/2018","Child Protection","CIN/CP Social Work Unit - Area 1","R1100"
"Wolverhampton City Council","http://opendatacommunities.org/id/metropolitan-district-council/wolverhampton","710664","NonStop Recruitment LTD","150178","1,312.50","Agency Staff","130224838","07/09/2018","Child Protection","CIN/CP Social Work Unit - Area 1","R1100"
"Wolverhampton City Council","http://opendatacommunities.org/id/metropolitan-district-council/wolverhampton","710664","NonStop Recruitment LTD","148898","1,304.25","Agency Staff","130220698","07/09/2018","Child Protection","CIN/CP Social Work Unit - Area 1","R1100"
"Wolverhampton City Council","http://opendatacommunities.org/id/metropolitan-district-council/wolverhampton","710664","NonStop Recruitment LTD","148336","1,163.25","Agency Staff","130219138","07/09/2018","Child Protection","CIN/CP Social Work Unit - Area 1","R1100"
"Wolverhampton City Council","http://opendatacommunities.org/id/metropolitan-district-council/wolverhampton","710664","NonStop Recruitment LTD","150179","1,312.50","Agency Staff","130224839","07/09/2018","Child Protection","CIN/CP Social Work Unit - Area 1","R1100"
"Wolverhampton City Council","http://opendatacommunities.org/id/metropolitan-district-council/wolverhampton","710756","Phoenix Software Ltd","OP/I826130","426.24","Computing - Licences","130227366","26/09/2018","School Planning & Resources","Technical Support","R4535"
"Wolverhampton City Council","http://opendatacommunities.org/id/metropolitan-district-council/wolverhampton","710756","Phoenix Software Ltd","OP/I825703","1,758.36","Computing - Licences","130226583","19/09/2018","School Planning & Resources","Technical Support","R4535"
"Wolverhampton City Council","http://opendatacommunities.org/id/metropolitan-district-council/wolverhampton","710780","Wilson & Scott (Highways) LTD","27744","5,188.52","TPP - Maintenance on Principal Roads","130226584","19/09/2018","Highways Maintenance","Road Markings","R5700"
"Wolverhampton City Council","http://opendatacommunities.org/id/metropolitan-district-council/wolverhampton","710780","Wilson & Scott (Highways) LTD","27562","6,620.78","TPP - Maintenance on Principal Roads","130228499","21/09/2018","Highways Maintenance","Road Markings","R5700"
"Wolverhampton City Council","http://opendatacommunities.org/id/metropolitan-district-council/wolverhampton","710786","St Judes C of E Primary Academy","TFT Autumn 2018 Inst 1","8,583.12","TPP - Private Nursery Education Funding","190508160","19/09/2018","Early Years","Early Years Entitlement Funding for Disadvantaged 2 Year Olds","R5035"
"Wolverhampton City Council","http://opendatacommunities.org/id/metropolitan-district-council/wolverhampton","710786","St Judes C of E Primary Academy","SEN Mainstream Top Ups Summer Term 18 - St Judes CE Primary","11,577.23","Grant Payments","190501522","05/09/2018","Central Education","High Needs Top Up Academies","R4700"
"Wolverhampton City Council","http://opendatacommunities.org/id/metropolitan-district-council/wolverhampton","710795","The Dudley Group NHS Foundation Trust","2000005547","3,102.36","TPP - Public Health Contracts","130229715","28/09/2018","Starting and Developing Well","Sexual Health","R5060"
"Wolverhampton City Council","http://opendatacommunities.org/id/metropolitan-district-council/wolverhampton","710796","IR James Associates LTD","3745","6,000.00","Equipment - Purchase","130226182","12/09/2018","Facilities Management","Civic Centre","R4000"
"Wolverhampton City Council","http://opendatacommunities.org/id/metropolitan-district-council/wolverhampton","710828","Andrew Page","061486281","10.26","Equipment - Purchase","190504280","12/09/2018","Fleet Services","Fleet Management","R4000"
"Wolverhampton City Council","http://opendatacommunities.org/id/metropolitan-district-council/wolverhampton","710828","Andrew Page","061486284","20.29","Equipment - Purchase","190504281","12/09/2018","Fleet Services","Fleet Management","R4000"
"Wolverhampton City Council","http://opendatacommunities.org/id/metropolitan-district-council/wolverhampton","710828","Andrew Page","H342224","-59.95","Equipment - Purchase","190508097","19/09/2018","Fleet Services","Fleet Management","R4000"
"Wolverhampton City Council","http://opendatacommunities.org/id/metropolitan-district-council/wolverhampton","710828","Andrew Page","061461494","4.46","Equipment - Purchase","190508072","19/09/2018","Fleet Services","Fleet Management","R4000"
"Wolverhampton City Council","http://opendatacommunities.org/id/metropolitan-district-council/wolverhampton","710828","Andrew Page","H341669.1","-9.00","Equipment - Purchase","190510194","26/09/2018","Fleet Services","Fleet Management","R4000"
"Wolverhampton City Council","http://opendatacommunities.org/id/metropolitan-district-council/wolverhampton","710828","Andrew Page","061489193","10.28","Equipment - Purchase","190510158","26/09/2018","Fleet Services","Fleet Management","R4000"
"Wolverhampton City Council","http://opendatacommunities.org/id/metropolitan-district-council/wolverhampton","710828","Andrew Page","061489387","9.00","Equipment - Purchase","190510160","26/09/2018","Fleet Services","Fleet Management","R4000"
"Wolverhampton City Council","http://opendatacommunities.org/id/metropolitan-district-council/wolverhampton","710828","Andrew Page","061489387","36.76","Equipment - Purchase","190510160","26/09/2018","Fleet Services","Fleet Management","R4000"
"Wolverhampton City Council","http://opendatacommunities.org/id/metropolitan-district-council/wolverhampton","710828","Andrew Page","061479536","5.06","Equipment - Purchase","190504990","14/09/2018","Fleet Services","Fleet Management","R4000"
"Wolverhampton City Council","http://opendatacommunities.org/id/metropolitan-district-council/wolverhampton","710828","Andrew Page","061479536","4.58","Equipment - Purchase","190504990","14/09/2018","Fleet Services","Fleet Management","R4000"
"Wolverhampton City Council","http://opendatacommunities.org/id/metropolitan-district-council/wolverhampton","710828","Andrew Page","061485698","8.86","Equipment - Purchase","190505006","14/09/2018","Fleet Services","Fleet Management","R4000"
"Wolverhampton City Council","http://opendatacommunities.org/id/metropolitan-district-council/wolverhampton","710828","Andrew Page","061480957","10.84","Equipment - Purchase","190504995","14/09/2018","Fleet Services","Fleet Management","R4000"
"Wolverhampton City Council","http://opendatacommunities.org/id/metropolitan-district-council/wolverhampton","710828","Andrew Page","061480957","10.36","Equipment - Purchase","190504995","14/09/2018","Fleet Services","Fleet Management","R4000"
"Wolverhampton City Council","http://opendatacommunities.org/id/metropolitan-district-council/wolverhampton","710828","Andrew Page","061473894","11.76","Equipment - Purchase","190504986","14/09/2018","Fleet Services","Fleet Management","R4000"
"Wolverhampton City Council","http://opendatacommunities.org/id/metropolitan-district-council/wolverhampton","710828","Andrew Page","061479536","3.40","Equipment - Purchase","190504990","14/09/2018","Fleet Services","Fleet Management","R4000"
"Wolverhampton City Council","http://opendatacommunities.org/id/metropolitan-district-council/wolverhampton","710828","Andrew Page","061479536","8.34","Equipment - Purchase","190504990","14/09/2018","Fleet Services","Fleet Management","R4000"
"Wolverhampton City Council","http://opendatacommunities.org/id/metropolitan-district-council/wolverhampton","710828","Andrew Page","061479536","36.36","Equipment - Purchase","190504990","14/09/2018","Fleet Services","Fleet Management","R4000"
"Wolverhampton City Council","http://opendatacommunities.org/id/metropolitan-district-council/wolverhampton","710828","Andrew Page","061486457","36.98","Equipment - Purchase","190505013","14/09/2018","Fleet Services","Fleet Management","R4000"
"Wolverhampton City Council","http://opendatacommunities.org/id/metropolitan-district-council/wolverhampton","710828","Andrew Page","061487252","5.66","Equipment - Purchase","190505015","14/09/2018","Fleet Services","Fleet Management","R4000"
"Wolverhampton City Council","http://opendatacommunities.org/id/metropolitan-district-council/wolverhampton","710828","Andrew Page","H343439.1","-6.22","Equipment - Purchase","190505061","14/09/2018","Fleet Services","Fleet Management","R4000"
"Wolverhampton City Council","http://opendatacommunities.org/id/metropolitan-district-council/wolverhampton","710828","Andrew Page","H343439","-18.70","Equipment - Purchase","190505060","14/09/2018","Fleet Services","Fleet Management","R4000"
"Wolverhampton City Council","http://opendatacommunities.org/id/metropolitan-district-council/wolverhampton","710828","Andrew Page","H343439","-8.86","Equipment - Purchase","190505060","14/09/2018","Fleet Services","Fleet Management","R4000"
"Wolverhampton City Council","http://opendatacommunities.org/id/metropolitan-district-council/wolverhampton","710828","Andrew Page","H342855.1","-59.95","Equipment - Purchase","190505056","14/09/2018","Fleet Services","Fleet Management","R4000"
"Wolverhampton City Council","http://opendatacommunities.org/id/metropolitan-district-council/wolverhampton","710828","Andrew Page","061487172","35.00","Equipment - Purchase","190505014","14/09/2018","Fleet Services","Fleet Management","R4000"
"Wolverhampton City Council","http://opendatacommunities.org/id/metropolitan-district-council/wolverhampton","710828","Andrew Page","061481826","59.95","Equipment - Purchase","190504996","14/09/2018","Fleet Services","Fleet Management","R4000"
"Wolverhampton City Council","http://opendatacommunities.org/id/metropolitan-district-council/wolverhampton","710828","Andrew Page","061481826","137.73","Equipment - Purchase","190504996","14/09/2018","Fleet Services","Fleet Management","R4000"
"Wolverhampton City Council","http://opendatacommunities.org/id/metropolitan-district-council/wolverhampton","710828","Andrew Page","061483389","1.80","Equipment - Purchase","190504274","12/09/2018","Fleet Services","Fleet Management","R4000"
"Wolverhampton City Council","http://opendatacommunities.org/id/metropolitan-district-council/wolverhampton","710828","Andrew Page","061483565","360.00","Equipment - Purchase","190504277","12/09/2018","Fleet Services","Fleet Management","R4000"
"Wolverhampton City Council","http://opendatacommunities.org/id/metropolitan-district-council/wolverhampton","710828","Andrew Page","061478201","106.72","Equipment - Purchase","190508074","19/09/2018","Fleet Services","Fleet Management","R4000"
"Wolverhampton City Council","http://opendatacommunities.org/id/metropolitan-district-council/wolverhampton","710828","Andrew Page","061478201","43.90","Equipment - Purchase","190508074","19/09/2018","Fleet Services","Fleet Management","R4000"
"Wolverhampton City Council","http://opendatacommunities.org/id/metropolitan-district-council/wolverhampton","710828","Andrew Page","061478201","43.90","Equipment - Purchase","190508074","19/09/2018","Fleet Services","Fleet Management","R4000"
"Wolverhampton City Council","http://opendatacommunities.org/id/metropolitan-district-council/wolverhampton","710828","Andrew Page","061478201","59.95","Equipment - Purchase","190508074","19/09/2018","Fleet Services","Fleet Management","R4000"
"Wolverhampton City Council","http://opendatacommunities.org/id/metropolitan-district-council/wolverhampton","710828","Andrew Page","061486179","12.00","Equipment - Purchase","190508075","19/09/2018","Fleet Services","Fleet Management","R4000"
"Wolverhampton City Council","http://opendatacommunities.org/id/metropolitan-district-council/wolverhampton","710828","Andrew Page","061486179","340.00","Equipment - Purchase","190508075","19/09/2018","Fleet Services","Fleet Management","R4000"
"Wolverhampton City Council","http://opendatacommunities.org/id/metropolitan-district-council/wolverhampton","710828","Andrew Page","061486179","40.00","Equipment - Purchase","190508075","19/09/2018","Fleet Services","Fleet Management","R4000"
"Wolverhampton City Council","http://opendatacommunities.org/id/metropolitan-district-council/wolverhampton","710828","Andrew Page","061489475","10.32","Equipment - Purchase","190510161","26/09/2018","Fleet Services","Fleet Management","R4000"
"Wolverhampton City Council","http://opendatacommunities.org/id/metropolitan-district-council/wolverhampton","710828","Andrew Page","061488429","138.88","Services - Professional Fees","190510156","26/09/2018","Fleet Services","Fleet Management","R4400"
"Wolverhampton City Council","http://opendatacommunities.org/id/metropolitan-district-council/wolverhampton","710828","Andrew Page","H341983","-52.32","Equipment - Purchase","190505049","14/09/2018","Fleet Services","Fleet Management","R4000"
"Wolverhampton City Council","http://opendatacommunities.org/id/metropolitan-district-council/wolverhampton","710828","Andrew Page","H341985.1","-18.83","Equipment - Purchase","190505052","14/09/2018","Fleet Services","Fleet Management","R4000"
"Wolverhampton City Council","http://opendatacommunities.org/id/metropolitan-district-council/wolverhampton","710828","Andrew Page","W532579","-110.19","Equipment - Purchase","190505072","14/09/2018","Fleet Services","Fleet Management","R4000"
"Wolverhampton City Council","http://opendatacommunities.org/id/metropolitan-district-council/wolverhampton","710828","Andrew Page","061485575","334.68","Equipment - Purchase","190505004","14/09/2018","Fleet Services","Fleet Management","R4000"
"Wolverhampton City Council","http://opendatacommunities.org/id/metropolitan-district-council/wolverhampton","710828","Andrew Page","061480003","22.65","Equipment - Purchase","190504993","14/09/2018","Fleet Services","Fleet Management","R4000"
"Wolverhampton City Council","http://opendatacommunities.org/id/metropolitan-district-council/wolverhampton","710828","Andrew Page","061480052","8.86","Equipment - Purchase","190504994","14/09/2018","Fleet Services","Fleet Management","R4000"
"Wolverhampton City Council","http://opendatacommunities.org/id/metropolitan-district-council/wolverhampton","710828","Andrew Page","061484518","7.55","Equipment - Purchase","190504998","14/09/2018","Fleet Services","Fleet Management","R4000"
"Wolverhampton City Council","http://opendatacommunities.org/id/metropolitan-district-council/wolverhampton","710828","Andrew Page","061485502","3.19","Equipment - Purchase","190505000","14/09/2018","Fleet Services","Fleet Management","R4000"
"Wolverhampton City Council","http://opendatacommunities.org/id/metropolitan-district-council/wolverhampton","710828","Andrew Page","061485467","52.32","Equipment - Purchase","190504999","14/09/2018","Fleet Services","Fleet Management","R4000"
"Wolverhampton City Council","http://opendatacommunities.org/id/metropolitan-district-council/wolverhampton","710828","Andrew Page","061485518","5.20","Equipment - Purchase","190505001","14/09/2018","Fleet Services","Fleet Management","R4000"
"Wolverhampton City Council","http://opendatacommunities.org/id/metropolitan-district-council/wolverhampton","710828","Andrew Page","061485518","17.50","Equipment - Purchase","190505001","14/09/2018","Fleet Services","Fleet Management","R4000"
"Wolverhampton City Council","http://opendatacommunities.org/id/metropolitan-district-council/wolverhampton","710828","Andrew Page","061485518","17.39","Equipment - Purchase","190505001","14/09/2018","Fleet Services","Fleet Management","R4000"
"Wolverhampton City Council","http://opendatacommunities.org/id/metropolitan-district-council/wolverhampton","710828","Andrew Page","061485518","14.40","Equipment - Purchase","190505001","14/09/2018","Fleet Services","Fleet Management","R4000"
"Wolverhampton City Council","http://opendatacommunities.org/id/metropolitan-district-council/wolverhampton","710828","Andrew Page","061485518","24.86","Equipment - Purchase","190505001","14/09/2018","Fleet Services","Fleet Management","R4000"
"Wolverhampton City Council","http://opendatacommunities.org/id/metropolitan-district-council/wolverhampton","710828","Andrew Page","061485900","20.84","Equipment - Purchase","190505010","14/09/2018","Fleet Services","Fleet Management","R4000"
"Wolverhampton City Council","http://opendatacommunities.org/id/metropolitan-district-council/wolverhampton","710828","Andrew Page","H342538","-6.22","Equipment - Purchase","190505053","14/09/2018","Fleet Services","Fleet Management","R4000"
"Wolverhampton City Council","http://opendatacommunities.org/id/metropolitan-district-council/wolverhampton","710828","Andrew Page","061483513","6.00","Equipment - Purchase","190504276","12/09/2018","Fleet Services","Fleet Management","R4000"
"Wolverhampton City Council","http://opendatacommunities.org/id/metropolitan-district-council/wolverhampton","710828","Andrew Page","061483403","33.94","Equipment - Purchase","190504275","12/09/2018","Fleet Services","Fleet Management","R4000"
"Wolverhampton City Council","http://opendatacommunities.org/id/metropolitan-district-council/wolverhampton","710828","Andrew Page","061485147","48.79","Equipment - Purchase","190504278","12/09/2018","Fleet Services","Fleet Management","R4000"
"Wolverhampton City Council","http://opendatacommunities.org/id/metropolitan-district-council/wolverhampton","710828","Andrew Page","H342224.1","-10.16","Equipment - Purchase","190508098","19/09/2018","Fleet Services","Fleet Management","R4000"
"Wolverhampton City Council","http://opendatacommunities.org/id/metropolitan-district-council/wolverhampton","710828","Andrew Page","H343721","-59.95","Equipment - Purchase","190508099","19/09/2018","Fleet Services","Fleet Management","R4000"
"Wolverhampton City Council","http://opendatacommunities.org/id/metropolitan-district-council/wolverhampton","710828","Andrew Page","061488038","18.09","Equipment - Purchase","190508077","19/09/2018","Fleet Services","Fleet Management","R4000"
"Wolverhampton City Council","http://opendatacommunities.org/id/metropolitan-district-council/wolverhampton","710828","Andrew Page","061488038","44.48","Equipment - Purchase","190508077","19/09/2018","Fleet Services","Fleet Management","R4000"
"Wolverhampton City Council","http://opendatacommunities.org/id/metropolitan-district-council/wolverhampton","710828","Andrew Page","061489224","12.11","Equipment - Purchase","190510159","26/09/2018","Fleet Services","Fleet Management","R4000"
"Wolverhampton City Council","http://opendatacommunities.org/id/metropolitan-district-council/wolverhampton","710828","Andrew Page","H341669","-12.11","Equipment - Purchase","190510193","26/09/2018","Fleet Services","Fleet Management","R4000"
"Wolverhampton City Council","http://opendatacommunities.org/id/metropolitan-district-council/wolverhampton","710828","Andrew Page","061485536","64.86","Equipment - Purchase","190505002","14/09/2018","Fleet Services","Fleet Management","R4000"
"Wolverhampton City Council","http://opendatacommunities.org/id/metropolitan-district-council/wolverhampton","710828","Andrew Page","061477671","110.19","Equipment - Purchase","190504989","14/09/2018","Fleet Services","Fleet Management","R4000"
"Wolverhampton City Council","http://opendatacommunities.org/id/metropolitan-district-council/wolverhampton","710828","Andrew Page","061485832","12.38","Equipment - Purchase","190505009","14/09/2018","Fleet Services","Fleet Management","R4000"
"Wolverhampton City Council","http://opendatacommunities.org/id/metropolitan-district-council/wolverhampton","710828","Andrew Page","061476425","17.39","Equipment - Purchase","190504988","14/09/2018","Fleet Services","Fleet Management","R4000"
"Wolverhampton City Council","http://opendatacommunities.org/id/metropolitan-district-council/wolverhampton","710828","Andrew Page","061485699","5.42","Equipment - Purchase","190505007","14/09/2018","Fleet Services","Fleet Management","R4000"
"Wolverhampton City Council","http://opendatacommunities.org/id/metropolitan-district-council/wolverhampton","710828","Andrew Page","061485928","29.58","Equipment - Purchase","190505011","14/09/2018","Fleet Services","Fleet Management","R4000"
"Wolverhampton City Council","http://opendatacommunities.org/id/metropolitan-district-council/wolverhampton","710828","Andrew Page","H340774","-14.40","Equipment - Purchase","190505048","14/09/2018","Fleet Services","Fleet Management","R4000"
"Wolverhampton City Council","http://opendatacommunities.org/id/metropolitan-district-council/wolverhampton","710828","Andrew Page","H343545","-8.18","Equipment - Purchase","190505062","14/09/2018","Fleet Services","Fleet Management","R4000"
"Wolverhampton City Council","http://opendatacommunities.org/id/metropolitan-district-council/wolverhampton","710828","Andrew Page","061482468","124.34","Equipment - Purchase","190504997","14/09/2018","Fleet Services","Fleet Management","R4000"
"Wolverhampton City Council","http://opendatacommunities.org/id/metropolitan-district-council/wolverhampton","710828","Andrew Page","061482468","59.95","Equipment - Purchase","190504997","14/09/2018","Fleet Services","Fleet Management","R4000"
"Wolverhampton City Council","http://opendatacommunities.org/id/metropolitan-district-council/wolverhampton","710828","Andrew Page","H341983.1","-15.57","Equipment - Purchase","190505050","14/09/2018","Fleet Services","Fleet Management","R4000"
"Wolverhampton City Council","http://opendatacommunities.org/id/metropolitan-district-council/wolverhampton","710828","Andrew Page","H341983.1","-15.03","Equipment - Purchase","190505050","14/09/2018","Fleet Services","Fleet Management","R4000"
"Wolverhampton City Council","http://opendatacommunities.org/id/metropolitan-district-council/wolverhampton","710828","Andrew Page","H342855.2","-59.95","Equipment - Purchase","190505057","14/09/2018","Fleet Services","Fleet Management","R4000"
"Wolverhampton City Council","http://opendatacommunities.org/id/metropolitan-district-council/wolverhampton","710828","Andrew Page","061483334","52.32","Equipment - Purchase","190504273","12/09/2018","Fleet Services","Fleet Management","R4000"
"Wolverhampton City Council","http://opendatacommunities.org/id/metropolitan-district-council/wolverhampton","710828","Andrew Page","061483334","11.36","Equipment - Purchase","190504273","12/09/2018","Fleet Services","Fleet Management","R4000"
"Wolverhampton City Council","http://opendatacommunities.org/id/metropolitan-district-council/wolverhampton","710828","Andrew Page","061483334","6.72","Equipment - Purchase","190504273","12/09/2018","Fleet Services","Fleet Management","R4000"
"Wolverhampton City Council","http://opendatacommunities.org/id/metropolitan-district-council/wolverhampton","710828","Andrew Page","061483334","37.06","Equipment - Purchase","190504273","12/09/2018","Fleet Services","Fleet Management","R4000"
"Wolverhampton City Council","http://opendatacommunities.org/id/metropolitan-district-council/wolverhampton","710828","Andrew Page","061485338","5.32","Equipment - Purchase","190504279","12/09/2018","Fleet Services","Fleet Management","R4000"
"Wolverhampton City Council","http://opendatacommunities.org/id/metropolitan-district-council/wolverhampton","710828","Andrew Page","061487617","91.14","Equipment - Purchase","190508076","19/09/2018","Fleet Services","Fleet Management","R4000"
"Wolverhampton City Council","http://opendatacommunities.org/id/metropolitan-district-council/wolverhampton","710828","Andrew Page","061487617","17.08","Equipment - Purchase","190508076","19/09/2018","Fleet Services","Fleet Management","R4000"
"Wolverhampton City Council","http://opendatacommunities.org/id/metropolitan-district-council/wolverhampton","710828","Andrew Page","061473775","59.95","Equipment - Purchase","190508073","19/09/2018","Fleet Services","Fleet Management","R4000"
"Wolverhampton City Council","http://opendatacommunities.org/id/metropolitan-district-council/wolverhampton","710828","Andrew Page","061473775","106.72","Equipment - Purchase","190508073","19/09/2018","Fleet Services","Fleet Management","R4000"
"Wolverhampton City Council","http://opendatacommunities.org/id/metropolitan-district-council/wolverhampton","710828","Andrew Page","061489055","11.04","Equipment - Purchase","190510157","26/09/2018","Fleet Services","Fleet Management","R4000"
"Wolverhampton City Council","http://opendatacommunities.org/id/metropolitan-district-council/wolverhampton","710828","Andrew Page","H340508","-11.04","Equipment - Purchase","190510192","26/09/2018","Fleet Services","Fleet Management","R4000"
"Wolverhampton City Council","http://opendatacommunities.org/id/metropolitan-district-council/wolverhampton","710828","Andrew Page","H342538.1","-10.36","Equipment - Purchase","190505054","14/09/2018","Fleet Services","Fleet Management","R4000"
"Wolverhampton City Council","http://opendatacommunities.org/id/metropolitan-district-council/wolverhampton","710828","Andrew Page","H341985","-45.38","Equipment - Purchase","190505051","14/09/2018","Fleet Services","Fleet Management","R4000"
"Wolverhampton City Council","http://opendatacommunities.org/id/metropolitan-district-council/wolverhampton","710828","Andrew Page","H343382.1","-99.95","Equipment - Purchase","190505059","14/09/2018","Fleet Services","Fleet Management","R4000"
"Wolverhampton City Council","http://opendatacommunities.org/id/metropolitan-district-council/wolverhampton","710828","Andrew Page","061480002","23.30","Equipment - Purchase","190504992","14/09/2018","Fleet Services","Fleet Management","R4000"
"Wolverhampton City Council","http://opendatacommunities.org/id/metropolitan-district-council/wolverhampton","710828","Andrew Page","061479624","8.86","Equipment - Purchase","190504991","14/09/2018","Fleet Services","Fleet Management","R4000"
"Wolverhampton City Council","http://opendatacommunities.org/id/metropolitan-district-council/wolverhampton","710828","Andrew Page","061479624","5.19","Equipment - Purchase","190504991","14/09/2018","Fleet Services","Fleet Management","R4000"
"Wolverhampton City Council","http://opendatacommunities.org/id/metropolitan-district-council/wolverhampton","710828","Andrew Page","061479624","3.34","Equipment - Purchase","190504991","14/09/2018","Fleet Services","Fleet Management","R4000"
"Wolverhampton City Council","http://opendatacommunities.org/id/metropolitan-district-council/wolverhampton","710828","Andrew Page","061479624","33.70","Equipment - Purchase","190504991","14/09/2018","Fleet Services","Fleet Management","R4000"
"Wolverhampton City Council","http://opendatacommunities.org/id/metropolitan-district-council/wolverhampton","710828","Andrew Page","061479624","15.52","Equipment - Purchase","190504991","14/09/2018","Fleet Services","Fleet Management","R4000"
"Wolverhampton City Council","http://opendatacommunities.org/id/metropolitan-district-council/wolverhampton","710828","Andrew Page","061479624","6.22","Equipment - Purchase","190504991","14/09/2018","Fleet Services","Fleet Management","R4000"
"Wolverhampton City Council","http://opendatacommunities.org/id/metropolitan-district-council/wolverhampton","710828","Andrew Page","061479624","18.70","Equipment - Purchase","190504991","14/09/2018","Fleet Services","Fleet Management","R4000"
"Wolverhampton City Council","http://opendatacommunities.org/id/metropolitan-district-council/wolverhampton","710828","Andrew Page","061485554","5.20","Equipment - Purchase","190505003","14/09/2018","Fleet Services","Fleet Management","R4000"
"Wolverhampton City Council","http://opendatacommunities.org/id/metropolitan-district-council/wolverhampton","710828","Andrew Page","061485595","19.02","Equipment - Purchase","190505005","14/09/2018","Fleet Services","Fleet Management","R4000"
"Wolverhampton City Council","http://opendatacommunities.org/id/metropolitan-district-council/wolverhampton","710828","Andrew Page","061485787","15.04","Equipment - Purchase","190505008","14/09/2018","Fleet Services","Fleet Management","R4000"
"Wolverhampton City Council","http://opendatacommunities.org/id/metropolitan-district-council/wolverhampton","710828","Andrew Page","061476309","7.58","Equipment - Purchase","190504987","14/09/2018","Fleet Services","Fleet Management","R4000"
"Wolverhampton City Council","http://opendatacommunities.org/id/metropolitan-district-council/wolverhampton","710828","Andrew Page","061476309","14.10","Equipment - Purchase","190504987","14/09/2018","Fleet Services","Fleet Management","R4000"
"Wolverhampton City Council","http://opendatacommunities.org/id/metropolitan-district-council/wolverhampton","710828","Andrew Page","061476309","21.08","Equipment - Purchase","190504987","14/09/2018","Fleet Services","Fleet Management","R4000"
"Wolverhampton City Council","http://opendatacommunities.org/id/metropolitan-district-council/wolverhampton","710828","Andrew Page","061476309","9.93","Equipment - Purchase","190504987","14/09/2018","Fleet Services","Fleet Management","R4000"
"Wolverhampton City Council","http://opendatacommunities.org/id/metropolitan-district-council/wolverhampton","710828","Andrew Page","061476309","4.78","Equipment - Purchase","190504987","14/09/2018","Fleet Services","Fleet Management","R4000"
"Wolverhampton City Council","http://opendatacommunities.org/id/metropolitan-district-council/wolverhampton","710828","Andrew Page","061476309","12.35","Equipment - Purchase","190504987","14/09/2018","Fleet Services","Fleet Management","R4000"
"Wolverhampton City Council","http://opendatacommunities.org/id/metropolitan-district-council/wolverhampton","710828","Andrew Page","061476309","2.82","Equipment - Purchase","190504987","14/09/2018","Fleet Services","Fleet Management","R4000"
"Wolverhampton City Council","http://opendatacommunities.org/id/metropolitan-district-council/wolverhampton","710828","Andrew Page","H342855","-14.72","Equipment - Purchase","190505055","14/09/2018","Fleet Services","Fleet Management","R4000"
"Wolverhampton City Council","http://opendatacommunities.org/id/metropolitan-district-council/wolverhampton","710828","Andrew Page","H343382","-15.04","Equipment - Purchase","190505058","14/09/2018","Fleet Services","Fleet Management","R4000"
"Wolverhampton City Council","http://opendatacommunities.org/id/metropolitan-district-council/wolverhampton","710828","Andrew Page","061486101","11.76","Equipment - Purchase","190505012","14/09/2018","Fleet Services","Fleet Management","R4000"
"Wolverhampton City Council","http://opendatacommunities.org/id/metropolitan-district-council/wolverhampton","710828","Andrew Page","061486101","99.95","Equipment - Purchase","190505012","14/09/2018","Fleet Services","Fleet Management","R4000"
"Wolverhampton City Council","http://opendatacommunities.org/id/metropolitan-district-council/wolverhampton","710828","Andrew Page","061486101","8.50","Equipment - Purchase","190505012","14/09/2018","Fleet Services","Fleet Management","R4000"
"Wolverhampton City Council","http://opendatacommunities.org/id/metropolitan-district-council/wolverhampton","710828","Andrew Page","061486101","95.24","Equipment - Purchase","190505012","14/09/2018","Fleet Services","Fleet Management","R4000"
"Wolverhampton City Council","http://opendatacommunities.org/id/metropolitan-district-council/wolverhampton","710828","Andrew Page","061486101","8.50","Equipment - Purchase","190505012","14/09/2018","Fleet Services","Fleet Management","R4000"
"Wolverhampton City Council","http://opendatacommunities.org/id/metropolitan-district-council/wolverhampton","710873","Little Rascals Childcare LTD","NEF Autumn 2018 INST 1","15,403.50","TPP - Private Nursery Education Funding","190508148","19/09/2018","Early Years","Early Years Universal Entitlement for 3 and 4 Year Olds","R5035"
"Wolverhampton City Council","http://opendatacommunities.org/id/metropolitan-district-council/wolverhampton","710873","Little Rascals Childcare LTD","TFT Autumn 2018 Inst 1","9,903.60","TPP - Private Nursery Education Funding","190508160","19/09/2018","Early Years","Early Years Entitlement Funding for Disadvantaged 2 Year Olds","R5035"
